Workbook

Sheet TEU2EXP
F8: Distance from TEU to Receptor (m)
E9: Recp ID | F9: R1 | G9: DayC1 | H9: DayC2 | I9: W1 | J9: W2
E10: UTM X | F10: 538448.3396 | G10: 538360.8277 | H10: 538620.0358 | I10: 538469.494 | J10: 538372.1894
B11: TEI UD | E11: UTM Y | F11: 5044380.596 | G11: 5044295.207 | H11: 5044324.686 | I11: 5044767.267 | J11: 5044768.138
B12: ID | C12: MOD ID | D12: UTM X | E12: UTM Y
B13: DC-1 | C13: EU2DC | D13: 538423 | E13: 5044774 | F13: =SQRT(($D13-F$10)^2+($E13-F$11)^2) -> 394.2189322 | G13: =SQRT(($D13-G$10)^2+($E13-G$11)^2) -> 482.8127715 | H13: 490.6180049 | I13: 46.97897379 | J13: 51.14766499
B14: EU-3 | C14: EU3CLF | D14: 538428 | E14: 5044770 | F14: 389.9345341 | G14: 479.5211685 | H14: 484.9558309 | I14: 41.58390047 | J14: 55.84166217
B15: EU-4A | C15: EU4APV | D15: 538425 | E15: 5044771 | F15: 391.1007363 | G15: 480.1011386 | H15: 487.0677576 | I15: 44.65031443 | J15: 52.88811051
B16: EU-4B | C16: EU4BPV | D16: 538417 | E16: 5044771 | F16: 391.6595709 | G16: 479.097429 | H16: 490.3259871 | I16: 52.62655773 | J16: 44.90192238
B17: VP1 | C17: EU6VP | D17: 538446.8314 | E17: 5044766.183 | F17: 385.5899496 | G17: 478.764401 | H17: 474.2567674 | I17: 22.68850064 | J17: 74.66758228
B18: CIA | C18: CIA1EG | D18: 538459.8 | E18: 5044775.71 | F18: 395.2798714 | G18: 490.5901448 | H18: 478.6418364 | I18: 12.85520114 | J18: 87.93723307
M19: Source | N19: Emission Point | O19: Height(ft) | P19: UTM X (m) | Q19: UTM Y (m) | R19: Description
M20: ='Identify Toxic Emitting Units'!C7 -> Polishing Dust Collector | N20: ='Identify Toxic Emitting Units'!B7 -> EU-2 | O20: =MAX('Identify Toxic Emitting Units'!F7*3.281,'Identify Toxic Emitting Units'!H7) -> 35.30172264 | P20: =D13 -> 538423 | Q20: 5044774
M21: ='Identify Toxic Emitting Units'!C8 -> Cleaning Building Fugitive | N21: ='Identify Toxic Emitting Units'!B8 -> EU-3 | O21: =MAX('Identify Toxic Emitting Units'!F8*3.281,'Identify Toxic Emitting Units'!H8) -> 25.3 | P21: 538428 | Q21: 5044770
M22: ='Identify Toxic Emitting Units'!C9 -> Passivation Building Exhaust A | N22: ='Identify Toxic Emitting Units'!B9 -> EU-4A | O22: 1.93 | P22: 538425 | Q22: 5044771
M23: ='Identify Toxic Emitting Units'!C10 -> Passivation Building Exhaust B | N23: ='Identify Toxic Emitting Units'!B10 -> EU-4B | O23: 2.18 | P23: =D18 -> 538459.8 | Q23: =E18 -> 5044775.71

Sheet Identify Toxic Emitting Units
B2: Toxic Emission Units (TEUs)
B5: TEU Identifier | C5: Description | D5: Emission Type | E5: Number of TACs at TEU | F5: Stack Height | G5: Building Area | H5: Building Height
F6: m | G6: ft^2 | H6: ft
B7: EU-2 | C7: Polishing Dust Collector | D7: Point | E7: 15 | F7: =CONVERT(H8+10,"ft","m") -> 10.75944
B8: EU-3 | C8: Cleaning Building Fugitive | D8: Fugitive | E8: 2 | G8: 27000 | H8: 25.3
B9: EU-4A | C9: Passivation Building Exhaust A | D9: Point | E9: 1 | F9: =76/12/3.281 -> 1.930305801
B10: EU-4B | C10: Passivation Building Exhaust B | D10: Point | E10: 1 | F10: =86/12/3.281 -> 2.184293406
B11: CIA-1 | C11: Diesel-fired Emergency Generator | D11: Point | E11: 50 | F11: 3

Sheet Identify Toxic Air Contaminants
B2: Toxic Air Contaminents and Emission Rates
B5: TEU Identifier | C5: TAC | D5: CAS Number | E5: Annual Emissions | F5: Daily Max Emissions
E6: lb/yr | F6: lb/day
B7: EU-2 | C7: Arsenic and compounds | D7: =_xlfn.IFNA(IF(VLOOKUP(C7,TACcas,3,FALSE)="NoRBC","NoRBC",VLOOKUP(C7,TACcas,2,FALSE)),"NoRBC") -> 7440-38-2 | E7: 0.00126144 | F7: 3.456e-06
B8: EU-2 | C8: Barium and compounds | D8: NoRBC | E8: 0.09851245714 | F8: 0.0002698971429
B9: EU-2 | C9: Cadmium and compounds | D9: 7440-43-9 | E9: 0.000252288 | F9: 6.912e-07
B10: EU-2 | C10: Chromium VI, chromate and dichromate particulate | D10: 18540-29-9 | E10: 0.004385005714 | F10: 1.201371429e-05
B11: EU-2 | C11: Lead and compounds | D11: 7439-92-1 | E11: 0.0006775734857 | F11: 1.856365714e-06
B12: EU-2 | C12: Mercury and compounds | D12: 7439-97-6 | E12: 0.0001019964343 | F12: 2.794422857e-07
B13: EU-2 | C13: Selenium and compounds | D13: 7782-49-2 | E13: 0.00126144 | F13: 3.456e-06
B14: EU-2 | C14: Silver and compounds | D14: NoRBC | E14: 0.000252288 | F14: 6.912e-07
B15: EU-2 | C15: Molybdenum trioxide | D15: NoRBC | E15: 0.4361432791 | F15: 0.001194913093
B16: EU-2 | C16: Nickel compounds, insoluble | D16: 365 | E16: 0.005622418286 | F16: 1.540388571e-05
B17: EU-2 | C17: Manganese and compounds | D17: 7439-96-5 | E17: 0.1501714286 | F17: 0.0004114285714
B18: EU-2 | C18: Aluminum and compounds | D18: 7429-90-5 | E18: 3.171620571 | F18: 0.008689371429
B19: EU-2 | C19: Cobalt and compounds | D19: 7440-48-4 | E19: 0.1508922514 | F19: 0.0004134034286
B20: EU-2 | C20: Phosphorus and compounds | D20: NoRBC | E20: 0.126144 | F20: 0.0003456
B21: EU-2 | C21: Vanadium (fume or dust) | D21: 7440-62-2 | E21: 3.171620571 | F21: 0.008689371429
B22: EU-3 | C22: Acetone | D22: 67-64-1 | E22: 4947.705 | F22: 27.11071233
B23: EU-3 | C23: Isopropyl alcohol | D23: 67-63-0 | E23: 4910.175 | F23: 26.90506849
B24: EU-4A | C24: Nitric Acid | D24: 7697-37-2 | E24: 20.46797799 | F24: 0.05607665202
B25: EU-4B | C25: Nitric Acid | D25: 7697-37-2 | E25: 53.75697747 | F25: 0.1472793903
B26: CIA-1 | C26: 1,3-Butadiene | D26: 106-99-0 | E26: 0.17657228 | F26: 0.0017657228
B27: CIA-1 | C27: 2-Methyl naphthalene | D27: NoRBC | E27: 0.009988360402 | F27: 9.988360402e-05
B28: CIA-1 | C28: Acenaphthene | D28: NoRBC | E28: 0.0005966537409 | F28: 5.966537409e-06
B29: CIA-1 | C29: Acenaphthylene | D29: NoRBC | E29: 0.0006577328582 | F29: 6.577328582e-06
B30: CIA-1 | C30: Acetaldehyde | D30: 75-07-0 | E30: 0.63619626 | F30: 0.0063619626
B31: CIA-1 | C31: Acrolein | D31: 107-02-8 | E31: 0.02753358 | F31: 0.0002753358
B32: CIA-1 | C32: Ammonia | D32: 7664-41-7 | E32: 0.64976 | F32: 0.0064976
B33: CIA-1 | C33: Anthracene | D33: NoRBC | E33: 0.0003671875056 | F33: 3.671875056e-06
B34: CIA-1 | C34: Antimony and compounds | D34: 7440-36-0 | E34: 0.0002584317032 | F34: 2.584317032e-06
B35: CIA-1 | C35: Arsenic and compounds | D35: 7440-38-2 | E35: 0.0002248597454 | F35: 2.248597454e-06
B36: CIA-1 | C36: Barium and compounds | D36: NoRBC | E36: 0.0003036761784 | F36: 3.036761784e-06
B37: CIA-1 | C37: Benz[a]anthracene | D37: 56-55-3 | E37: 3.942526311e-05 | F37: 3.942526311e-07
B38: CIA-1 | C38: Benzene | D38: 71-43-2 | E38: 0.15131286 | F38: 0.0015131286
B39: CIA-1 | C39: Benzo[a]pyrene | D39: =_xlfn.IFNA(IF(VLOOKUP(C39,TACcas,3,FALSE)="NoRBC","NoRBC",VLOOKUP(C39,TACcas,2,FALSE)),"NoRBC") -> 50-32-8 | E39: 1.168368978e-05 | F39: 1.168368978e-07
B40: CIA-1 | C40: Benzo[b]fluoranthene | D40: 205-99-2 | E40: 3.602397616e-05 | F40: 3.602397616e-07
B41: CIA-1 | C41: Benzo[e]pyrene | D41: NoRBC | E41: 2.669562873e-05 | F41: 2.669562873e-07
B42: CIA-1 | C42: Benzo[g,h,i]perylene | D42: 191-24-2 | E42: 1.776630541e-05 | F42: 1.776630541e-07
B43: CIA-1 | C43: Benzo[k]fluoranthene | D43: 207-08-9 | E43: 1.060275035e-05 | F43: 1.060275035e-07
B44: CIA-1 | C44: Beryllium and compounds | D44: 7440-41-7 | E44: 3.874881346e-06 | F44: 3.874881346e-08
B45: CIA-1 | C45: Cadmium and compounds | D45: 7440-43-9 | E45: 6.560813183e-05 | F45: 6.560813183e-07
B46: CIA-1 | C46: Chlorobenzene | D46: 108-90-7 | E46: 0.00016244 | F46: 1.6244e-06
B47: CIA-1 | C47: Chromium VI, chromate and dichromate particulate | D47: 18540-29-9 | E47: 5.128593011e-05 | F47: 5.128593011e-07
B48: CIA-1 | C48: Chrysene | D48: 218-01-9 | E48: 5.441732947e-05 | F48: 5.441732947e-07
B49: CIA-1 | C49: Cobalt and compounds | D49: 7440-48-4 | E49: 1.279307411e-05 | F49: 1.279307411e-07
B50: CIA-1 | C50: Copper and compounds | D50: 7440-50-8 | E50: 0.0004078342161 | F50: 4.078342161e-06
B51: CIA-1 | C51: Dibenz[a,h]anthracene | D51: 53-70-3 | E51: 8.422405717e-07 | F51: 8.422405717e-09
B52: CIA-1 | C52: Diesel particulate matter | D52: 200 | E52: 13.78729456 | F52: 0.1378729456
B53: CIA-1 | C53: Ethyl benzene | D53: 100-41-4 | E53: 0.00885298 | F53: 8.85298e-05
B54: CIA-1 | C54: Fluoranthene | D54: 206-44-0 | E54: 0.0003004760369 | F54: 3.004760369e-06
B55: CIA-1 | C55: Fluorene | D55: NoRBC | E55: 0.001774167469 | F55: 1.774167469e-05
B56: CIA-1 | C56: Formaldehyde | D56: 50-00-0 | E56: 2.203549578 | F56: 0.02203549578
B57: CIA-1 | C57: Hexane | D57: 110-54-3 | E57: 0.02184818 | F57: 0.0002184818
B58: CIA-1 | C58: Hydrochloric acid | D58: 7647-01-0 | E58: 0.15131286 | F58: 0.0015131286
B59: CIA-1 | C59: Indeno[1,2,3-cd]pyrene | D59: 193-39-5 | E59: 8.699452718e-06 | F59: 8.699452718e-08
B60: CIA-1 | C60: Lead and compounds | D60: 7439-92-1 | E60: 0.0002953740181 | F60: 2.953740181e-06
B61: CIA-1 | C61: Manganese and compounds | D61: 7439-96-5 | E61: 0.0003410530537 | F61: 3.410530537e-06
B62: CIA-1 | C62: Mercury and compounds | D62: 7439-97-6 | E62: 1.227017873e-05 | F62: 1.227017873e-07
B63: CIA-1 | C63: Naphthalene | D63: 91-20-3 | E63: 0.02140341206 | F63: 0.0002140341206
B64: CIA-1 | C64: Nickel compounds, insoluble | D64: 365 | E64: 0.000148006671 | F64: 1.48006671e-06
B65: CIA-1 | C65: Perylene | D65: NoRBC | E65: 9.569718507e-07 | F65: 9.569718507e-09
B66: CIA-1 | C66: Phenanthrene | D66: NoRBC | E66: 0.003688968974 | F66: 3.688968974e-05
B67: CIA-1 | C67: Phosphorus and compounds | D67: NoRBC | E67: 0.006825717211 | F67: 6.825717211e-05
B68: CIA-1 | C68: Propylene | D68: 115-07-1 | E68: 0.381734 | F68: 0.00381734
B69: CIA-1 | C69: Pyrene | D69: NoRBC | E69: 0.00101525 | F69: 1.01525e-05
B70: CIA-1 | C70: Selenium and compounds | D70: 7782-49-2 | E70: 0.0003056980123 | F70: 3.056980123e-06
B71: CIA-1 | C71: Silver and compounds | D71: =_xlfn.IFNA(IF(VLOOKUP(C71,TACcas,3,FALSE)="NoRBC","NoRBC",VLOOKUP(C71,TACcas,2,FALSE)),"NoRBC") -> NoRBC | E71: 3.899617015e-05 | F71: 3.899617015e-07
B72: CIA-1 | C72: Thallium and compounds | D72: NoRBC | E72: 0.0001950040881 | F72: 1.950040881e-06
B73: CIA-1 | C73: Toluene | D73: 108-88-3 | E73: 0.08560588 | F73: 0.0008560588
B74: CIA-1 | C74: Xylene (mixture), including m-xylene, o-xylene, p-xylene | D74: 1330-20-7 | E74: 0.03443728 | F74: 0.0003443728
B75: CIA-1 | C75: Zinc and compounds | D75: NoRBC | E75: 0.00424470088 | F75: 4.24470088e-05

Sheet Identify Exposure Locations
B2: Exposure Locations
B3: A map with the TEI and each Exposure Location labeled should be included with the submission.
B6: TEU Identifier | C6: Residential Exposure Name | D6: Distance (m) | E6: Child Exposure Name | F6: Distance (m) | G6: Work Exposure Name | H6: Distance (m) | I6: Acute Exposure Name | J6: Distance (m)
B7: EU-2 | C7: R1 | D7: 394.2189322 | E7: DayC1 | F7: 482.8127715 | G7: W1 | H7: 46.97897379 | I7: W1 | J7: 46.97897379
B8: EU-3 | C8: R1 | D8: 389.9345341 | E8: DayC1 | F8: 479.5211685 | G8: W2 | H8: 41.58390047 | I8: W2 | J8: 41.58390047
B9: EU-4A | C9: R1 | D9: 391.1007363 | E9: DayC1 | F9: 480.1011386 | G9: W2 | H9: 44.65031443 | I9: W2 | J9: 44.65031443
B10: EU-4B | C10: R1 | D10: 391.6595709 | E10: DayC1 | F10: 479.097429 | G10: W2 | H10: 44.90192238 | I10: W2 | J10: 44.90192238
B11: CIA-1 | C11: R1 | D11: 395.2798714 | E11: DayC2 | F11: 478.6418364 | G11: W2 | H11: 12.85520114 | I11: W2 | J11: 12.85520114

Sheet Calculate Dispersion Factors
B2: Dispersion Factors
B5: TEU | C5: Type | D5: DF Residential | E5: DF Child | F5: DF Worker | G5: DF Acute
D6: ug/m3/lbs/yr | E6: ug/m3/lbs/yr | F6: ug/m3/lbs/yr | G6: ug/m3/lbs/yr
B7: EU-2 | C7: Point | D7: 9.915814095e-05 | E7: 6.764478663e-05 | F7: 0.0013012728 | G7: 3.496224
B8: EU-3 | C8: Fugitive | D8: 0.0001360392795 | E8: 9.173407283e-05 | F8: 0.0034 | G8: 2.9
B9: EU-4A | C9: Point | D9: 0.0001053395582 | E9: 7.617370396e-05 | F9: 0.0033 | G9: 8.3
B10: EU-4B | C10: Point | D10: 0.0001050042574 | E10: 7.643466847e-05 | F10: 0.0033 | G10: 8.3
B11: CIA-1 | C11: Point | D11: 0.0001028320772 | E11: 7.655312254e-05 | F11: 0.0033 | G11: 8.3

Sheet Calculate Risk
B2: Risk Calculations
B5: TEU Identifier | C5: TAC | D5: CAS Number | E5: Cancer RBC | H5: Chronic RBC | K5: Acute RBC | L5: Cancer Risk | O5: Chronic Risk | R5: Acute
E6: Residential | F6: Child | G6: Worker | H6: Residential | I6: Child | J6: Worker | L6: Residential | M6: Child | N6: Worker | O6: Residential | P6: Child | Q6: Worker
B7: EU-2 | C7: Arsenic and compounds | D7: 7440-38-2 | E7: 2.4e-05 | F7: 0.0013 | G7: 0.00062 | H7: 0.00017 | I7: 0.0024 | J7: 0.0024 | K7: 0.2 | L7: ='Identify Toxic Air Contaminants'!$E7*VLOOKUP($B7,'Calculate Dispersion Factors'!$B$7:$N$11,3,FALSE)/E7 -> 0.005211751888 | M7: ='Identify Toxic Air Contaminants'!$E7*VLOOKUP($B7,'Calculate Dispersion Factors'!$B$7:$N$11,4,FALSE)/F7 -> 6.563833819e-05 | N7: ='Identify Toxic Air Contaminants'!$E7*VLOOKUP($B7,'Calculate Dispersion Factors'!$B$7:$N$11,5,FALSE)/G7 -> 0.002647544453 | O7: ='Identify Toxic Air Contaminants'!$E7*VLOOKUP($B7,'Calculate Dispersion Factors'!$B$7:$N$11,3,FALSE)/H7 -> 0.0007357767372 | P7: ='Identify Toxic Air Contaminants'!$E7*VLOOKUP($B7,'Calculate Dispersion Factors'!$B$7:$N$11,4,FALSE)/I7 -> 3.555409985e-05 | Q7: ='Identify Toxic Air Contaminants'!$E7*VLOOKUP($B7,'Calculate Dispersion Factors'!$B$7:$N$11,5,FALSE)/J7 -> 0.0006839489837 | R7: ='Identify Toxic Air Contaminants'!$F7*VLOOKUP($B7,'Calculate Dispersion Factors'!$B$7:$N$11,6,FALSE)/K7 -> 6.041475072e-05
B8: EU-2 | C8: Barium and compounds | D8: NoRBC | E8: -- | F8: -- | G8: -- | H8: -- | I8: -- | J8: -- | K8: --
B9: EU-2 | C9: Cadmium and compounds | D9: 7440-43-9 | E9: 0.00056 | F9: 0.014 | G9: 0.0067 | H9: 0.005 | I9: 0.037 | J9: 0.037 | K9: 0.03 | L9: ='Identify Toxic Air Contaminants'!$E9*VLOOKUP($B9,'Calculate Dispersion Factors'!$B$7:$N$11,3,FALSE)/E9 -> 4.467215904e-05 | M9: ='Identify Toxic Air Contaminants'!$E9*VLOOKUP($B9,'Calculate Dispersion Factors'!$B$7:$N$11,4,FALSE)/F9 -> 1.218997709e-06 | N9: ='Identify Toxic Air Contaminants'!$E9*VLOOKUP($B9,'Calculate Dispersion Factors'!$B$7:$N$11,5,FALSE)/G9 -> 4.899933017e-05 | O9: ='Identify Toxic Air Contaminants'!$E9*VLOOKUP($B9,'Calculate Dispersion Factors'!$B$7:$N$11,3,FALSE)/H9 -> 5.003281813e-06 | P9: ='Identify Toxic Air Contaminants'!$E9*VLOOKUP($B9,'Calculate Dispersion Factors'!$B$7:$N$11,4,FALSE)/I9 -> 4.612423765e-07 | Q9: ='Identify Toxic Air Contaminants'!$E9*VLOOKUP($B9,'Calculate Dispersion Factors'!$B$7:$N$11,5,FALSE)/J9 -> 8.87285168e-06 | R9: ='Identify Toxic Air Contaminants'!$F9*VLOOKUP($B9,'Calculate Dispersion Factors'!$B$7:$N$11,6,FALSE)/K9 -> 8.055300096e-05
B10: EU-2 | C10: Chromium VI, chromate and dichromate particulate | D10: 18540-29-9 | E10: 3.1e-05 | F10: 0.00052 | G10: 0.001 | H10: 0.083 | I10: 0.88 | J10: 0.88 | K10: 0.3 | L10: ='Identify Toxic Air Contaminants'!$E10*VLOOKUP($B10,'Calculate Dispersion Factors'!$B$7:$N$11,3,FALSE)/E10 -> 0.01402609725 | M10: ='Identify Toxic Air Contaminants'!$E10*VLOOKUP($B10,'Calculate Dispersion Factors'!$B$7:$N$11,4,FALSE)/F10 -> 0.0005704284152 | N10: ='Identify Toxic Air Contaminants'!$E10*VLOOKUP($B10,'Calculate Dispersion Factors'!$B$7:$N$11,5,FALSE)/G10 -> 0.005706088664 | O10: ='Identify Toxic Air Contaminants'!$E10*VLOOKUP($B10,'Calculate Dispersion Factors'!$B$7:$N$11,3,FALSE)/H10 -> 5.238662827e-06 | P10: ='Identify Toxic Air Contaminants'!$E10*VLOOKUP($B10,'Calculate Dispersion Factors'!$B$7:$N$11,4,FALSE)/I10 -> 3.370713363e-07 | Q10: ='Identify Toxic Air Contaminants'!$E10*VLOOKUP($B10,'Calculate Dispersion Factors'!$B$7:$N$11,5,FALSE)/J10 -> 6.484191663e-06 | R10: ='Identify Toxic Air Contaminants'!$F10*VLOOKUP($B10,'Calculate Dispersion Factors'!$B$7:$N$11,6,FALSE)/K10 -> 0.0001400087874
B11: EU-2 | C11: Lead and compounds | D11: 7439-92-1 | E11: -- | F11: -- | G11: -- | H11: 0.15 | I11: 0.66 | J11: 0.66 | K11: 0.15 | L11: -- | M11: -- | N11: -- | O11: ='Identify Toxic Air Contaminants'!$E11*VLOOKUP($B11,'Calculate Dispersion Factors'!$B$7:$N$11,3,FALSE)/H11 -> 4.47912848e-07 | P11: ='Identify Toxic Air Contaminants'!$E11*VLOOKUP($B11,'Calculate Dispersion Factors'!$B$7:$N$11,4,FALSE)/I11 -> 6.94459301e-08 | Q11: ='Identify Toxic Air Contaminants'!$E11*VLOOKUP($B11,'Calculate Dispersion Factors'!$B$7:$N$11,5,FALSE)/J11 -> 1.335921132e-06 | R11: ='Identify Toxic Air Contaminants'!$F11*VLOOKUP($B11,'Calculate Dispersion Factors'!$B$7:$N$11,6,FALSE)/K11 -> 4.326846909e-05
B12: EU-2 | C12: Mercury and compounds | D12: 7439-97-6 | E12: -- | F12: -- | G12: -- | H12: 0.077 | I12: 0.63 | J12: 0.63 | K12: 0.6 | L12: -- | M12: -- | N12: -- | O12: ='Identify Toxic Air Contaminants'!$E12*VLOOKUP($B12,'Calculate Dispersion Factors'!$B$7:$N$11,3,FALSE)/H12 -> 1.313477507e-07 | P12: ='Identify Toxic Air Contaminants'!$E12*VLOOKUP($B12,'Calculate Dispersion Factors'!$B$7:$N$11,4,FALSE)/I12 -> 1.095163021e-08 | Q12: ='Identify Toxic Air Contaminants'!$E12*VLOOKUP($B12,'Calculate Dispersion Factors'!$B$7:$N$11,5,FALSE)/J12 -> 2.106748978e-07 | R12: ='Identify Toxic Air Contaminants'!$F12*VLOOKUP($B12,'Calculate Dispersion Factors'!$B$7:$N$11,6,FALSE)/K12 -> 1.628321377e-06
B13: EU-2 | C13: Selenium and compounds | D13: 7782-49-2 | E13: -- | F13: -- | G13: -- | H13: -- | I13: -- | J13: -- | K13: 2 | L13: -- | M13: -- | N13: -- | O13: -- | P13: -- | Q13: -- | R13: ='Identify Toxic Air Contaminants'!$F13*VLOOKUP($B13,'Calculate Dispersion Factors'!$B$7:$N$11,6,FALSE)/K13 -> 6.041475072e-06
B14: EU-2 | C14: Silver and compounds | D14: NoRBC | E14: -- | F14: -- | G14: -- | H14: -- | I14: -- | J14: -- | K14: --
B15: EU-2 | C15: Molybdenum trioxide | D15: NoRBC | E15: -- | F15: -- | G15: -- | H15: -- | I15: -- | J15: -- | K15: --
B16: EU-2 | C16: Nickel compounds, insoluble | D16: 365 | E16: 0.0038 | F16: 0.1 | G16: 0.046 | H16: 0.014 | I16: 0.062 | J16: 0.062 | K16: 0.2 | L16: ='Identify Toxic Air Contaminants'!$E16*VLOOKUP($B16,'Calculate Dispersion Factors'!$B$7:$N$11,3,FALSE)/E16 -> 0.000146712775 | M16: ='Identify Toxic Air Contaminants'!$E16*VLOOKUP($B16,'Calculate Dispersion Factors'!$B$7:$N$11,4,FALSE)/F16 -> 3.803272853e-06 | N16: ='Identify Toxic Air Contaminants'!$E16*VLOOKUP($B16,'Calculate Dispersion Factors'!$B$7:$N$11,5,FALSE)/G16 -> 0.0001590499997 | O16: ='Identify Toxic Air Contaminants'!$E16*VLOOKUP($B16,'Calculate Dispersion Factors'!$B$7:$N$11,3,FALSE)/H16 -> 3.982203892e-05 | P16: ='Identify Toxic Air Contaminants'!$E16*VLOOKUP($B16,'Calculate Dispersion Factors'!$B$7:$N$11,4,FALSE)/I16 -> 6.134311053e-06 | Q16: ='Identify Toxic Air Contaminants'!$E16*VLOOKUP($B16,'Calculate Dispersion Factors'!$B$7:$N$11,5,FALSE)/J16 -> 0.0001180048385 | R16: ='Identify Toxic Air Contaminants'!$F16*VLOOKUP($B16,'Calculate Dispersion Factors'!$B$7:$N$11,6,FALSE)/K16 -> 0.0002692771746
B17: EU-2 | C17: Manganese and compounds | D17: 7439-96-5 | E17: -- | F17: -- | G17: -- | H17: 0.09 | I17: 0.4 | J17: 0.4 | K17: 0.3 | L17: -- | M17: -- | N17: -- | O17: ='Identify Toxic Air Contaminants'!$E17*VLOOKUP($B17,'Calculate Dispersion Factors'!$B$7:$N$11,3,FALSE)/H17 -> 0.0001654524409 | P17: ='Identify Toxic Air Contaminants'!$E17*VLOOKUP($B17,'Calculate Dispersion Factors'!$B$7:$N$11,4,FALSE)/I17 -> 2.539578561e-05 | Q17: ='Identify Toxic Air Contaminants'!$E17*VLOOKUP($B17,'Calculate Dispersion Factors'!$B$7:$N$11,5,FALSE)/J17 -> 0.0004885349883 | R17: ='Identify Toxic Air Contaminants'!$F17*VLOOKUP($B17,'Calculate Dispersion Factors'!$B$7:$N$11,6,FALSE)/K17 -> 0.004794821486
B18: EU-2 | C18: Aluminum and compounds | D18: 7429-90-5 | E18: -- | F18: -- | G18: -- | H18: 5 | I18: 22 | J18: 22 | K18: -- | L18: -- | M18: -- | N18: -- | O18: ='Identify Toxic Air Contaminants'!$E18*VLOOKUP($B18,'Calculate Dispersion Factors'!$B$7:$N$11,3,FALSE)/H18 -> 6.289839993e-05 | P18: ='Identify Toxic Air Contaminants'!$E18*VLOOKUP($B18,'Calculate Dispersion Factors'!$B$7:$N$11,4,FALSE)/I18 -> 9.751981674e-06 | Q18: ='Identify Toxic Air Contaminants'!$E18*VLOOKUP($B18,'Calculate Dispersion Factors'!$B$7:$N$11,5,FALSE)/J18 -> 0.0001875974355 | R18: --
B19: EU-2 | C19: Cobalt and compounds | D19: 7440-48-4 | E19: -- | F19: -- | G19: -- | H19: 0.1 | I19: 0.44 | J19: 0.44 | K19: -- | L19: -- | M19: -- | N19: -- | O19: ='Identify Toxic Air Contaminants'!$E19*VLOOKUP($B19,'Calculate Dispersion Factors'!$B$7:$N$11,3,FALSE)/H19 -> 0.0001496219513 | P19: ='Identify Toxic Air Contaminants'!$E19*VLOOKUP($B19,'Calculate Dispersion Factors'!$B$7:$N$11,4,FALSE)/I19 -> 2.31978958e-05 | Q19: ='Identify Toxic Air Contaminants'!$E19*VLOOKUP($B19,'Calculate Dispersion Factors'!$B$7:$N$11,5,FALSE)/J19 -> 0.0004462545057 | R19: --
B20: EU-2 | C20: Phosphorus and compounds | D20: NoRBC | E20: -- | F20: -- | G20: -- | H20: -- | I20: -- | J20: -- | K20: --
B21: EU-2 | C21: Vanadium (fume or dust) | D21: 7440-62-2 | E21: -- | F21: -- | G21: -- | H21: 0.1 | I21: 0.44 | J21: 0.44 | K21: 0.8 | L21: -- | M21: -- | N21: -- | O21: ='Identify Toxic Air Contaminants'!$E21*VLOOKUP($B21,'Calculate Dispersion Factors'!$B$7:$N$11,3,FALSE)/H21 -> 0.003144919997 | P21: ='Identify Toxic Air Contaminants'!$E21*VLOOKUP($B21,'Calculate Dispersion Factors'!$B$7:$N$11,4,FALSE)/I21 -> 0.0004875990837 | Q21: ='Identify Toxic Air Contaminants'!$E21*VLOOKUP($B21,'Calculate Dispersion Factors'!$B$7:$N$11,5,FALSE)/J21 -> 0.009379871776 | R21: ='Identify Toxic Air Contaminants'!$F21*VLOOKUP($B21,'Calculate Dispersion Factors'!$B$7:$N$11,6,FALSE)/K21 -> 0.03797498617
B22: EU-3 | C22: Acetone | D22: 67-64-1 | E22: -- | F22: -- | G22: -- | H22: 31000 | I22: 140000 | J22: 140000 | K22: 62000 | L22: -- | M22: -- | N22: -- | O22: ='Identify Toxic Air Contaminants'!$E22*VLOOKUP($B22,'Calculate Dispersion Factors'!$B$7:$N$11,3,FALSE)/H22 -> 2.171232979e-05 | P22: ='Identify Toxic Air Contaminants'!$E22*VLOOKUP($B22,'Calculate Dispersion Factors'!$B$7:$N$11,4,FALSE)/I22 -> 3.241950934e-06 | Q22: ='Identify Toxic Air Contaminants'!$E22*VLOOKUP($B22,'Calculate Dispersion Factors'!$B$7:$N$11,5,FALSE)/J22 -> 0.00012015855 | R22: ='Identify Toxic Air Contaminants'!$F22*VLOOKUP($B22,'Calculate Dispersion Factors'!$B$7:$N$11,6,FALSE)/K22 -> 0.001268081706
B23: EU-3 | C23: Isopropyl alcohol | D23: 67-63-0 | E23: -- | F23: -- | G23: -- | H23: 200 | I23: 880 | J23: 880 | K23: 3200 | L23: -- | M23: -- | N23: -- | O23: ='Identify Toxic Air Contaminants'!$E23*VLOOKUP($B23,'Calculate Dispersion Factors'!$B$7:$N$11,3,FALSE)/H23 -> 0.003339883347 | P23: ='Identify Toxic Air Contaminants'!$E23*VLOOKUP($B23,'Calculate Dispersion Factors'!$B$7:$N$11,4,FALSE)/I23 -> 0.0005118526716 | Q23: ='Identify Toxic Air Contaminants'!$E23*VLOOKUP($B23,'Calculate Dispersion Factors'!$B$7:$N$11,5,FALSE)/J23 -> 0.01897113068 | R23: ='Identify Toxic Air Contaminants'!$F23*VLOOKUP($B23,'Calculate Dispersion Factors'!$B$7:$N$11,6,FALSE)/K23 -> 0.02438271832
B24: EU-4A | C24: Nitric Acid | D24: 7697-37-2 | E24: -- | F24: -- | G24: -- | H24: -- | I24: -- | J24: -- | K24: 86 | L24: -- | M24: -- | N24: -- | O24: -- | P24: -- | Q24: -- | R24: ='Identify Toxic Air Contaminants'!$F24*VLOOKUP($B24,'Calculate Dispersion Factors'!$B$7:$N$11,6,FALSE)/K24 -> 0.005412048974
B25: EU-4B | C25: Nitric Acid | D25: 7697-37-2 | E25: -- | F25: -- | G25: -- | H25: -- | I25: -- | J25: -- | K25: 86 | L25: -- | M25: -- | N25: -- | O25: -- | P25: -- | Q25: -- | R25: ='Identify Toxic Air Contaminants'!$F25*VLOOKUP($B25,'Calculate Dispersion Factors'!$B$7:$N$11,6,FALSE)/K25 -> 0.01421417372
B26: CIA-1 | C26: 1,3-Butadiene | D26: 106-99-0 | E26: 0.033 | F26: 0.86 | G26: 0.4 | H26: 2 | I26: 8.8 | J26: 8.8 | K26: 660 | L26: ='Identify Toxic Air Contaminants'!$E26*VLOOKUP($B26,'Calculate Dispersion Factors'!$B$7:$N$11,3,FALSE)/E26 -> 0.0005502210402 | M26: ='Identify Toxic Air Contaminants'!$E26*VLOOKUP($B26,'Calculate Dispersion Factors'!$B$7:$N$11,4,FALSE)/F26 -> 1.57176272e-05 | N26: ='Identify Toxic Air Contaminants'!$E26*VLOOKUP($B26,'Calculate Dispersion Factors'!$B$7:$N$11,5,FALSE)/G26 -> 0.00145672131 | O26: ='Identify Toxic Air Contaminants'!$E26*VLOOKUP($B26,'Calculate Dispersion Factors'!$B$7:$N$11,3,FALSE)/H26 -> 9.078647163e-06 | P26: ='Identify Toxic Air Contaminants'!$E26*VLOOKUP($B26,'Calculate Dispersion Factors'!$B$7:$N$11,4,FALSE)/I26 -> 1.53604084e-06 | Q26: ='Identify Toxic Air Contaminants'!$E26*VLOOKUP($B26,'Calculate Dispersion Factors'!$B$7:$N$11,5,FALSE)/J26 -> 6.6214605e-05 | R26: ='Identify Toxic Air Contaminants'!$F26*VLOOKUP($B26,'Calculate Dispersion Factors'!$B$7:$N$11,6,FALSE)/K26 -> 2.220530188e-05
B27: CIA-1 | C27: 2-Methyl naphthalene | D27: NoRBC | E27: -- | F27: -- | G27: -- | H27: -- | I27: -- | J27: -- | K27: --
B28: CIA-1 | C28: Acenaphthene | D28: NoRBC | E28: -- | F28: -- | G28: -- | H28: -- | I28: -- | J28: -- | K28: --
B29: CIA-1 | C29: Acenaphthylene | D29: NoRBC | E29: -- | F29: -- | G29: -- | H29: -- | I29: -- | J29: -- | K29: --
B30: CIA-1 | C30: Acetaldehyde | D30: 75-07-0 | E30: 0.45 | F30: 12 | G30: 5.5 | H30: 140 | I30: 620 | J30: 620 | K30: 470 | L30: ='Identify Toxic Air Contaminants'!$E30*VLOOKUP($B30,'Calculate Dispersion Factors'!$B$7:$N$11,3,FALSE)/E30 -> 0.0001453808509 | M30: ='Identify Toxic Air Contaminants'!$E30*VLOOKUP($B30,'Calculate Dispersion Factors'!$B$7:$N$11,4,FALSE)/F30 -> 4.058567521e-06 | N30: ='Identify Toxic Air Contaminants'!$E30*VLOOKUP($B30,'Calculate Dispersion Factors'!$B$7:$N$11,5,FALSE)/G30 -> 0.000381717756 | O30: ='Identify Toxic Air Contaminants'!$E30*VLOOKUP($B30,'Calculate Dispersion Factors'!$B$7:$N$11,3,FALSE)/H30 -> 4.672955923e-07 | P30: ='Identify Toxic Air Contaminants'!$E30*VLOOKUP($B30,'Calculate Dispersion Factors'!$B$7:$N$11,4,FALSE)/I30 -> 7.855291976e-08 | Q30: ='Identify Toxic Air Contaminants'!$E30*VLOOKUP($B30,'Calculate Dispersion Factors'!$B$7:$N$11,5,FALSE)/J30 -> 3.3862059e-06 | R30: ='Identify Toxic Air Contaminants'!$F30*VLOOKUP($B30,'Calculate Dispersion Factors'!$B$7:$N$11,6,FALSE)/K30 -> 0.0001123495523
B31: CIA-1 | C31: Acrolein | D31: 107-02-8 | E31: -- | F31: -- | G31: -- | H31: 0.35 | I31: 1.5 | J31: 1.5 | K31: 6.9 | L31: -- | M31: -- | N31: -- | O31: ='Identify Toxic Air Contaminants'!$E31*VLOOKUP($B31,'Calculate Dispersion Factors'!$B$7:$N$11,3,FALSE)/H31 -> 8.089529211e-06 | P31: ='Identify Toxic Air Contaminants'!$E31*VLOOKUP($B31,'Calculate Dispersion Factors'!$B$7:$N$11,4,FALSE)/I31 -> 1.405187682e-06 | Q31: ='Identify Toxic Air Contaminants'!$E31*VLOOKUP($B31,'Calculate Dispersion Factors'!$B$7:$N$11,5,FALSE)/J31 -> 6.0573876e-05 | R31: ='Identify Toxic Air Contaminants'!$F31*VLOOKUP($B31,'Calculate Dispersion Factors'!$B$7:$N$11,6,FALSE)/K31 -> 0.0003312010348
B32: CIA-1 | C32: Ammonia | D32: 7664-41-7 | E32: -- | F32: -- | G32: -- | H32: 500 | I32: 2200 | J32: 2200 | K32: 1200 | L32: -- | M32: -- | N32: -- | O32: ='Identify Toxic Air Contaminants'!$E32*VLOOKUP($B32,'Calculate Dispersion Factors'!$B$7:$N$11,3,FALSE)/H32 -> 1.336323409e-07 | P32: ='Identify Toxic Air Contaminants'!$E32*VLOOKUP($B32,'Calculate Dispersion Factors'!$B$7:$N$11,4,FALSE)/I32 -> 2.260961677e-08 | Q32: ='Identify Toxic Air Contaminants'!$E32*VLOOKUP($B32,'Calculate Dispersion Factors'!$B$7:$N$11,5,FALSE)/J32 -> 9.7464e-07 | R32: ='Identify Toxic Air Contaminants'!$F32*VLOOKUP($B32,'Calculate Dispersion Factors'!$B$7:$N$11,6,FALSE)/K32 -> 4.494173333e-05
B33: CIA-1 | C33: Anthracene | D33: NoRBC | E33: -- | F33: -- | G33: -- | H33: -- | I33: -- | J33: -- | K33: --
B34: CIA-1 | C34: Antimony and compounds | D34: 7440-36-0 | E34: -- | F34: -- | G34: -- | H34: 0.3 | I34: 1.3 | J34: 1.3 | K34: 1 | L34: -- | M34: -- | N34: -- | O34: ='Identify Toxic Air Contaminants'!$E34*VLOOKUP($B34,'Calculate Dispersion Factors'!$B$7:$N$11,3,FALSE)/H34 -> 8.858356283e-08 | P34: ='Identify Toxic Air Contaminants'!$E34*VLOOKUP($B34,'Calculate Dispersion Factors'!$B$7:$N$11,4,FALSE)/I34 -> 1.521827219e-08 | Q34: ='Identify Toxic Air Contaminants'!$E34*VLOOKUP($B34,'Calculate Dispersion Factors'!$B$7:$N$11,5,FALSE)/J34 -> 6.560189388e-07 | R34: ='Identify Toxic Air Contaminants'!$F34*VLOOKUP($B34,'Calculate Dispersion Factors'!$B$7:$N$11,6,FALSE)/K34 -> 2.144983136e-05
B35: CIA-1 | C35: Arsenic and compounds | D35: 7440-38-2 | E35: 2.4e-05 | F35: 0.0013 | G35: 0.00062 | H35: 0.00017 | I35: 0.0024 | J35: 0.0024 | K35: 0.2 | L35: ='Identify Toxic Air Contaminants'!$E35*VLOOKUP($B35,'Calculate Dispersion Factors'!$B$7:$N$11,3,FALSE)/E35 -> 0.0009634497789 | M35: ='Identify Toxic Air Contaminants'!$E35*VLOOKUP($B35,'Calculate Dispersion Factors'!$B$7:$N$11,4,FALSE)/F35 -> 1.324131973e-05 | N35: ='Identify Toxic Air Contaminants'!$E35*VLOOKUP($B35,'Calculate Dispersion Factors'!$B$7:$N$11,5,FALSE)/G35 -> 0.001196834129 | O35: ='Identify Toxic Air Contaminants'!$E35*VLOOKUP($B35,'Calculate Dispersion Factors'!$B$7:$N$11,3,FALSE)/H35 -> 0.0001360164394 | P35: ='Identify Toxic Air Contaminants'!$E35*VLOOKUP($B35,'Calculate Dispersion Factors'!$B$7:$N$11,4,FALSE)/I35 -> 7.172381518e-06 | Q35: ='Identify Toxic Air Contaminants'!$E35*VLOOKUP($B35,'Calculate Dispersion Factors'!$B$7:$N$11,5,FALSE)/J35 -> 0.0003091821499 | R35: ='Identify Toxic Air Contaminants'!$F35*VLOOKUP($B35,'Calculate Dispersion Factors'!$B$7:$N$11,6,FALSE)/K35 -> 9.331679433e-05
B36: CIA-1 | C36: Barium and compounds | D36: NoRBC | E36: -- | F36: -- | G36: -- | H36: -- | I36: -- | J36: -- | K36: --
B37: CIA-1 | C37: Benz[a]anthracene | D37: 56-55-3 | E37: 0.00021 | F37: 0.0078 | G37: 0.015 | H37: -- | I37: -- | J37: -- | K37: -- | L37: ='Identify Toxic Air Contaminants'!$E37*VLOOKUP($B37,'Calculate Dispersion Factors'!$B$7:$N$11,3,FALSE)/E37 -> 1.930562714e-05 | M37: ='Identify Toxic Air Contaminants'!$E37*VLOOKUP($B37,'Calculate Dispersion Factors'!$B$7:$N$11,4,FALSE)/F37 -> 3.869393587e-07 | N37: ='Identify Toxic Air Contaminants'!$E37*VLOOKUP($B37,'Calculate Dispersion Factors'!$B$7:$N$11,5,FALSE)/G37 -> 8.673557884e-06 | O37: -- | P37: -- | Q37: -- | R37: --
B38: CIA-1 | C38: Benzene | D38: 71-43-2 | E38: 0.13 | F38: 3.3 | G38: 1.5 | H38: 3 | I38: 13 | J38: 13 | K38: 29 | L38: ='Identify Toxic Air Contaminants'!$E38*VLOOKUP($B38,'Calculate Dispersion Factors'!$B$7:$N$11,3,FALSE)/E38 -> 0.00011969089 | M38: ='Identify Toxic Air Contaminants'!$E38*VLOOKUP($B38,'Calculate Dispersion Factors'!$B$7:$N$11,4,FALSE)/F38 -> 3.510143004e-06 | N38: ='Identify Toxic Air Contaminants'!$E38*VLOOKUP($B38,'Calculate Dispersion Factors'!$B$7:$N$11,5,FALSE)/G38 -> 0.000332888292 | O38: ='Identify Toxic Air Contaminants'!$E38*VLOOKUP($B38,'Calculate Dispersion Factors'!$B$7:$N$11,3,FALSE)/H38 -> 5.186605233e-06 | P38: ='Identify Toxic Air Contaminants'!$E38*VLOOKUP($B38,'Calculate Dispersion Factors'!$B$7:$N$11,4,FALSE)/I38 -> 8.91036301e-07 | Q38: ='Identify Toxic Air Contaminants'!$E38*VLOOKUP($B38,'Calculate Dispersion Factors'!$B$7:$N$11,5,FALSE)/J38 -> 3.841018754e-05 | R38: ='Identify Toxic Air Contaminants'!$F38*VLOOKUP($B38,'Calculate Dispersion Factors'!$B$7:$N$11,6,FALSE)/K38 -> 0.0004330678407
B39: CIA-1 | C39: Benzo[a]pyrene | D39: 50-32-8 | E39: 4.3e-05 | F39: 0.0016 | G39: 0.003 | H39: 0.002 | I39: 0.0088 | J39: 0.0088 | K39: 0.002 | L39: ='Identify Toxic Air Contaminants'!$E39*VLOOKUP($B39,'Calculate Dispersion Factors'!$B$7:$N$11,3,FALSE)/E39 -> 2.79408858e-05 | M39: ='Identify Toxic Air Contaminants'!$E39*VLOOKUP($B39,'Calculate Dispersion Factors'!$B$7:$N$11,4,FALSE)/F39 -> 5.590143346e-07 | N39: ='Identify Toxic Air Contaminants'!$E39*VLOOKUP($B39,'Calculate Dispersion Factors'!$B$7:$N$11,5,FALSE)/G39 -> 1.285205876e-05 | O39: ='Identify Toxic Air Contaminants'!$E39*VLOOKUP($B39,'Calculate Dispersion Factors'!$B$7:$N$11,3,FALSE)/H39 -> 6.007290446e-07 | P39: ='Identify Toxic Air Contaminants'!$E39*VLOOKUP($B39,'Calculate Dispersion Factors'!$B$7:$N$11,4,FALSE)/I39 -> 1.016389699e-07 | Q39: ='Identify Toxic Air Contaminants'!$E39*VLOOKUP($B39,'Calculate Dispersion Factors'!$B$7:$N$11,5,FALSE)/J39 -> 4.381383667e-06 | R39: ='Identify Toxic Air Contaminants'!$F39*VLOOKUP($B39,'Calculate Dispersion Factors'!$B$7:$N$11,6,FALSE)/K39 -> 0.0004848731258
B40: CIA-1 | C40: Benzo[b]fluoranthene | D40: 205-99-2 | E40: 5.3e-05 | F40: 0.002 | G40: 0.0038 | H40: -- | I40: -- | J40: -- | K40: -- | L40: ='Identify Toxic Air Contaminants'!$E40*VLOOKUP($B40,'Calculate Dispersion Factors'!$B$7:$N$11,3,FALSE)/E40 -> 6.989472259e-05 | M40: ='Identify Toxic Air Contaminants'!$E40*VLOOKUP($B40,'Calculate Dispersion Factors'!$B$7:$N$11,4,FALSE)/F40 -> 1.378873931e-06 | N40: ='Identify Toxic Air Contaminants'!$E40*VLOOKUP($B40,'Calculate Dispersion Factors'!$B$7:$N$11,5,FALSE)/G40 -> 3.12839793e-05 | O40: -- | P40: -- | Q40: -- | R40: --
B41: CIA-1 | C41: Benzo[e]pyrene | D41: NoRBC | E41: -- | F41: -- | G41: -- | H41: -- | I41: -- | J41: -- | K41: --
B42: CIA-1 | C42: Benzo[g,h,i]perylene | D42: 191-24-2 | E42: 0.0047 | F42: 0.17 | G42: 0.34 | H42: -- | I42: -- | J42: -- | K42: -- | L42: ='Identify Toxic Air Contaminants'!$E42*VLOOKUP($B42,'Calculate Dispersion Factors'!$B$7:$N$11,3,FALSE)/E42 -> 3.887119339e-07 | M42: ='Identify Toxic Air Contaminants'!$E42*VLOOKUP($B42,'Calculate Dispersion Factors'!$B$7:$N$11,4,FALSE)/F42 -> 8.000389148e-09 | N42: ='Identify Toxic Air Contaminants'!$E42*VLOOKUP($B42,'Calculate Dispersion Factors'!$B$7:$N$11,5,FALSE)/G42 -> 1.724376701e-07 | O42: -- | P42: -- | Q42: -- | R42: --
B43: CIA-1 | C43: Benzo[k]fluoranthene | D43: 207-08-9 | E43: 0.0014 | F43: 0.052 | G43: 0.1 | H43: -- | I43: -- | J43: -- | K43: -- | L43: ='Identify Toxic Air Contaminants'!$E43*VLOOKUP($B43,'Calculate Dispersion Factors'!$B$7:$N$11,3,FALSE)/E43 -> 7.787877448e-07 | M43: ='Identify Toxic Air Contaminants'!$E43*VLOOKUP($B43,'Calculate Dispersion Factors'!$B$7:$N$11,4,FALSE)/F43 -> 1.56091086e-08 | N43: ='Identify Toxic Air Contaminants'!$E43*VLOOKUP($B43,'Calculate Dispersion Factors'!$B$7:$N$11,5,FALSE)/G43 -> 3.498907617e-07 | O43: -- | P43: -- | Q43: -- | R43: --
B44: CIA-1 | C44: Beryllium and compounds | D44: 7440-41-7 | E44: 0.00042 | F44: 0.011 | G44: 0.005 | H44: 0.007 | I44: 0.031 | J44: 0.031 | K44: 0.02 | L44: ='Identify Toxic Air Contaminants'!$E44*VLOOKUP($B44,'Calculate Dispersion Factors'!$B$7:$N$11,3,FALSE)/E44 -> 9.487192801e-07 | M44: ='Identify Toxic Air Contaminants'!$E44*VLOOKUP($B44,'Calculate Dispersion Factors'!$B$7:$N$11,4,FALSE)/F44 -> 2.69667515e-08 | N44: ='Identify Toxic Air Contaminants'!$E44*VLOOKUP($B44,'Calculate Dispersion Factors'!$B$7:$N$11,5,FALSE)/G44 -> 2.557421688e-06 | O44: ='Identify Toxic Air Contaminants'!$E44*VLOOKUP($B44,'Calculate Dispersion Factors'!$B$7:$N$11,3,FALSE)/H44 -> 5.692315681e-08 | P44: ='Identify Toxic Air Contaminants'!$E44*VLOOKUP($B44,'Calculate Dispersion Factors'!$B$7:$N$11,4,FALSE)/I44 -> 9.568847307e-09 | Q44: ='Identify Toxic Air Contaminants'!$E44*VLOOKUP($B44,'Calculate Dispersion Factors'!$B$7:$N$11,5,FALSE)/J44 -> 4.124873691e-07 | R44: ='Identify Toxic Air Contaminants'!$F44*VLOOKUP($B44,'Calculate Dispersion Factors'!$B$7:$N$11,6,FALSE)/K44 -> 1.608075759e-05
B45: CIA-1 | C45: Cadmium and compounds | D45: 7440-43-9 | E45: 0.00056 | F45: 0.014 | G45: 0.0067 | H45: 0.005 | I45: 0.037 | J45: 0.037 | K45: 0.03 | L45: ='Identify Toxic Air Contaminants'!$E45*VLOOKUP($B45,'Calculate Dispersion Factors'!$B$7:$N$11,3,FALSE)/E45 -> 1.204753657e-05 | M45: ='Identify Toxic Air Contaminants'!$E45*VLOOKUP($B45,'Calculate Dispersion Factors'!$B$7:$N$11,4,FALSE)/F45 -> 3.587505254e-07 | N45: ='Identify Toxic Air Contaminants'!$E45*VLOOKUP($B45,'Calculate Dispersion Factors'!$B$7:$N$11,5,FALSE)/G45 -> 3.231445299e-05 | O45: ='Identify Toxic Air Contaminants'!$E45*VLOOKUP($B45,'Calculate Dispersion Factors'!$B$7:$N$11,3,FALSE)/H45 -> 1.349324095e-06 | P45: ='Identify Toxic Air Contaminants'!$E45*VLOOKUP($B45,'Calculate Dispersion Factors'!$B$7:$N$11,4,FALSE)/I45 -> 1.357434421e-07 | Q45: ='Identify Toxic Air Contaminants'!$E45*VLOOKUP($B45,'Calculate Dispersion Factors'!$B$7:$N$11,5,FALSE)/J45 -> 5.851536082e-06 | R45: ='Identify Toxic Air Contaminants'!$F45*VLOOKUP($B45,'Calculate Dispersion Factors'!$B$7:$N$11,6,FALSE)/K45 -> 0.0001815158314
B46: CIA-1 | C46: Chlorobenzene | D46: 108-90-7 | E46: -- | F46: -- | G46: -- | H46: 50 | I46: 220 | J46: 220 | K46: -- | L46: -- | M46: -- | N46: -- | O46: ='Identify Toxic Air Contaminants'!$E46*VLOOKUP($B46,'Calculate Dispersion Factors'!$B$7:$N$11,3,FALSE)/H46 -> 3.340808524e-10 | P46: ='Identify Toxic Air Contaminants'!$E46*VLOOKUP($B46,'Calculate Dispersion Factors'!$B$7:$N$11,4,FALSE)/I46 -> 5.652404193e-11 | Q46: ='Identify Toxic Air Contaminants'!$E46*VLOOKUP($B46,'Calculate Dispersion Factors'!$B$7:$N$11,5,FALSE)/J46 -> 2.4366e-09 | R46: --
B47: CIA-1 | C47: Chromium VI, chromate and dichromate particulate | D47: 18540-29-9 | E47: 3.1e-05 | F47: 0.00052 | G47: 0.001 | H47: 0.083 | I47: 0.88 | J47: 0.88 | K47: 0.3 | L47: ='Identify Toxic Air Contaminants'!$E47*VLOOKUP($B47,'Calculate Dispersion Factors'!$B$7:$N$11,3,FALSE)/E47 -> 0.0001701238298 | M47: ='Identify Toxic Air Contaminants'!$E47*VLOOKUP($B47,'Calculate Dispersion Factors'!$B$7:$N$11,4,FALSE)/F47 -> 7.550188639e-06 | N47: ='Identify Toxic Air Contaminants'!$E47*VLOOKUP($B47,'Calculate Dispersion Factors'!$B$7:$N$11,5,FALSE)/G47 -> 0.0001692435694 | O47: ='Identify Toxic Air Contaminants'!$E47*VLOOKUP($B47,'Calculate Dispersion Factors'!$B$7:$N$11,3,FALSE)/H47 -> 6.354022559e-08 | P47: ='Identify Toxic Air Contaminants'!$E47*VLOOKUP($B47,'Calculate Dispersion Factors'!$B$7:$N$11,4,FALSE)/I47 -> 4.461475105e-09 | Q47: ='Identify Toxic Air Contaminants'!$E47*VLOOKUP($B47,'Calculate Dispersion Factors'!$B$7:$N$11,5,FALSE)/J47 -> 1.923222379e-07 | R47: ='Identify Toxic Air Contaminants'!$F47*VLOOKUP($B47,'Calculate Dispersion Factors'!$B$7:$N$11,6,FALSE)/K47 -> 1.418910733e-05
B48: CIA-1 | C48: Chrysene | D48: 218-01-9 | E48: 0.00043 | F48: 0.016 | G48: 0.03 | H48: -- | I48: -- | J48: -- | K48: -- | L48: ='Identify Toxic Air Contaminants'!$E48*VLOOKUP($B48,'Calculate Dispersion Factors'!$B$7:$N$11,3,FALSE)/E48 -> 1.301359773e-05 | M48: ='Identify Toxic Air Contaminants'!$E48*VLOOKUP($B48,'Calculate Dispersion Factors'!$B$7:$N$11,4,FALSE)/F48 -> 2.603635307e-07 | N48: ='Identify Toxic Air Contaminants'!$E48*VLOOKUP($B48,'Calculate Dispersion Factors'!$B$7:$N$11,5,FALSE)/G48 -> 5.985906241e-06 | O48: -- | P48: -- | Q48: -- | R48: --
B49: CIA-1 | C49: Cobalt and compounds | D49: 7440-48-4 | E49: -- | F49: -- | G49: -- | H49: 0.1 | I49: 0.44 | J49: 0.44 | K49: -- | L49: -- | M49: -- | N49: -- | O49: ='Identify Toxic Air Contaminants'!$E49*VLOOKUP($B49,'Calculate Dispersion Factors'!$B$7:$N$11,3,FALSE)/H49 -> 1.315538384e-08 | P49: ='Identify Toxic Air Contaminants'!$E49*VLOOKUP($B49,'Calculate Dispersion Factors'!$B$7:$N$11,4,FALSE)/I49 -> 2.225794931e-09 | Q49: ='Identify Toxic Air Contaminants'!$E49*VLOOKUP($B49,'Calculate Dispersion Factors'!$B$7:$N$11,5,FALSE)/J49 -> 9.59480558e-08 | R49: --
B50: CIA-1 | C50: Copper and compounds | D50: 7440-50-8 | E50: -- | F50: -- | G50: -- | H50: -- | I50: -- | J50: -- | K50: 100 | L50: -- | M50: -- | N50: -- | O50: -- | P50: -- | Q50: -- | R50: ='Identify Toxic Air Contaminants'!$F50*VLOOKUP($B50,'Calculate Dispersion Factors'!$B$7:$N$11,6,FALSE)/K50 -> 3.385023994e-07
B51: CIA-1 | C51: Dibenz[a,h]anthracene | D51: 53-70-3 | E51: 4.3e-06 | F51: 0.00016 | G51: 0.0003 | H51: -- | I51: -- | J51: -- | K51: -- | L51: ='Identify Toxic Air Contaminants'!$E51*VLOOKUP($B51,'Calculate Dispersion Factors'!$B$7:$N$11,3,FALSE)/E51 -> 2.014170872e-05 | M51: ='Identify Toxic Air Contaminants'!$E51*VLOOKUP($B51,'Calculate Dispersion Factors'!$B$7:$N$11,4,FALSE)/F51 -> 4.029759106e-07 | N51: ='Identify Toxic Air Contaminants'!$E51*VLOOKUP($B51,'Calculate Dispersion Factors'!$B$7:$N$11,5,FALSE)/G51 -> 9.264646289e-06 | O51: -- | P51: -- | Q51: -- | R51: --
B52: CIA-1 | C52: Diesel particulate matter | D52: 200 | E52: 0.1 | F52: 2.6 | G52: 1.2 | H52: 5 | I52: 22 | J52: 22 | K52: -- | L52: ='Identify Toxic Air Contaminants'!$E52*VLOOKUP($B52,'Calculate Dispersion Factors'!$B$7:$N$11,3,FALSE)/E52 -> 0.01417776138 | M52: ='Identify Toxic Air Contaminants'!$E52*VLOOKUP($B52,'Calculate Dispersion Factors'!$B$7:$N$11,4,FALSE)/F52 -> 0.0004059463268 | N52: ='Identify Toxic Air Contaminants'!$E52*VLOOKUP($B52,'Calculate Dispersion Factors'!$B$7:$N$11,5,FALSE)/G52 -> 0.03791506003 | O52: ='Identify Toxic Air Contaminants'!$E52*VLOOKUP($B52,'Calculate Dispersion Factors'!$B$7:$N$11,3,FALSE)/H52 -> 0.0002835552276 | P52: ='Identify Toxic Air Contaminants'!$E52*VLOOKUP($B52,'Calculate Dispersion Factors'!$B$7:$N$11,4,FALSE)/I52 -> 4.797547499e-05 | Q52: ='Identify Toxic Air Contaminants'!$E52*VLOOKUP($B52,'Calculate Dispersion Factors'!$B$7:$N$11,5,FALSE)/J52 -> 0.002068094184 | R52: --
B53: CIA-1 | C53: Ethyl benzene | D53: 100-41-4 | E53: 0.4 | F53: 10 | G53: 4.8 | H53: 260 | I53: 1100 | J53: 1100 | K53: 22000 | L53: ='Identify Toxic Air Contaminants'!$E53*VLOOKUP($B53,'Calculate Dispersion Factors'!$B$7:$N$11,3,FALSE)/E53 -> 2.275925807e-06 | M53: ='Identify Toxic Air Contaminants'!$E53*VLOOKUP($B53,'Calculate Dispersion Factors'!$B$7:$N$11,4,FALSE)/F53 -> 6.777232628e-08 | N53: ='Identify Toxic Air Contaminants'!$E53*VLOOKUP($B53,'Calculate Dispersion Factors'!$B$7:$N$11,5,FALSE)/G53 -> 6.08642375e-06 | O53: ='Identify Toxic Air Contaminants'!$E53*VLOOKUP($B53,'Calculate Dispersion Factors'!$B$7:$N$11,3,FALSE)/H53 -> 3.501424318e-09 | P53: ='Identify Toxic Air Contaminants'!$E53*VLOOKUP($B53,'Calculate Dispersion Factors'!$B$7:$N$11,4,FALSE)/I53 -> 6.161120571e-10 | Q53: ='Identify Toxic Air Contaminants'!$E53*VLOOKUP($B53,'Calculate Dispersion Factors'!$B$7:$N$11,5,FALSE)/J53 -> 2.655894e-08 | R53: ='Identify Toxic Air Contaminants'!$F53*VLOOKUP($B53,'Calculate Dispersion Factors'!$B$7:$N$11,6,FALSE)/K53 -> 3.339987909e-08
B54: CIA-1 | C54: Fluoranthene | D54: 206-44-0 | E54: 0.00053 | F54: 0.02 | G54: 0.038 | H54: -- | I54: -- | J54: -- | K54: -- | L54: ='Identify Toxic Air Contaminants'!$E54*VLOOKUP($B54,'Calculate Dispersion Factors'!$B$7:$N$11,3,FALSE)/E54 -> 5.829919815e-05 | M54: ='Identify Toxic Air Contaminants'!$E54*VLOOKUP($B54,'Calculate Dispersion Factors'!$B$7:$N$11,4,FALSE)/F54 -> 1.150118944e-06 | N54: ='Identify Toxic Air Contaminants'!$E54*VLOOKUP($B54,'Calculate Dispersion Factors'!$B$7:$N$11,5,FALSE)/G54 -> 2.609397162e-05 | O54: -- | P54: -- | Q54: -- | R54: --
B55: CIA-1 | C55: Fluorene | D55: NoRBC | E55: -- | F55: -- | G55: -- | H55: -- | I55: -- | J55: -- | K55: --
B56: CIA-1 | C56: Formaldehyde | D56: 50-00-0 | E56: 0.17 | F56: 4.3 | G56: 2 | H56: 9 | I56: 40 | J56: 40 | K56: 49 | L56: ='Identify Toxic Air Contaminants'!$E56*VLOOKUP($B56,'Calculate Dispersion Factors'!$B$7:$N$11,3,FALSE)/E56 -> 0.001332915178 | M56: ='Identify Toxic Air Contaminants'!$E56*VLOOKUP($B56,'Calculate Dispersion Factors'!$B$7:$N$11,4,FALSE)/F56 -> 3.922990718e-05 | N56: ='Identify Toxic Air Contaminants'!$E56*VLOOKUP($B56,'Calculate Dispersion Factors'!$B$7:$N$11,5,FALSE)/G56 -> 0.003635856804 | O56: ='Identify Toxic Air Contaminants'!$E56*VLOOKUP($B56,'Calculate Dispersion Factors'!$B$7:$N$11,3,FALSE)/H56 -> 2.51772867e-05 | P56: ='Identify Toxic Air Contaminants'!$E56*VLOOKUP($B56,'Calculate Dispersion Factors'!$B$7:$N$11,4,FALSE)/I56 -> 4.217215022e-06 | Q56: ='Identify Toxic Air Contaminants'!$E56*VLOOKUP($B56,'Calculate Dispersion Factors'!$B$7:$N$11,5,FALSE)/J56 -> 0.0001817928402 | R56: ='Identify Toxic Air Contaminants'!$F56*VLOOKUP($B56,'Calculate Dispersion Factors'!$B$7:$N$11,6,FALSE)/K56 -> 0.003732543163
B57: CIA-1 | C57: Hexane | D57: 110-54-3 | E57: -- | F57: -- | G57: -- | H57: 700 | I57: 3100 | J57: 3100 | K57: -- | L57: -- | M57: -- | N57: -- | O57: ='Identify Toxic Air Contaminants'!$E57*VLOOKUP($B57,'Calculate Dispersion Factors'!$B$7:$N$11,3,FALSE)/H57 -> 3.209562475e-09 | P57: ='Identify Toxic Air Contaminants'!$E57*VLOOKUP($B57,'Calculate Dispersion Factors'!$B$7:$N$11,4,FALSE)/I57 -> 5.39531097e-10 | Q57: ='Identify Toxic Air Contaminants'!$E57*VLOOKUP($B57,'Calculate Dispersion Factors'!$B$7:$N$11,5,FALSE)/J57 -> 2.325774e-08 | R57: --
B58: CIA-1 | C58: Hydrochloric acid | D58: 7647-01-0 | E58: -- | F58: -- | G58: -- | H58: 20 | I58: 88 | J58: 88 | K58: 2100 | L58: -- | M58: -- | N58: -- | O58: ='Identify Toxic Air Contaminants'!$E58*VLOOKUP($B58,'Calculate Dispersion Factors'!$B$7:$N$11,3,FALSE)/H58 -> 7.77990785e-07 | P58: ='Identify Toxic Air Contaminants'!$E58*VLOOKUP($B58,'Calculate Dispersion Factors'!$B$7:$N$11,4,FALSE)/I58 -> 1.316303627e-07 | Q58: ='Identify Toxic Air Contaminants'!$E58*VLOOKUP($B58,'Calculate Dispersion Factors'!$B$7:$N$11,5,FALSE)/J58 -> 5.67423225e-06 | R58: ='Identify Toxic Air Contaminants'!$F58*VLOOKUP($B58,'Calculate Dispersion Factors'!$B$7:$N$11,6,FALSE)/K58 -> 5.980460657e-06
B59: CIA-1 | C59: Indeno[1,2,3-cd]pyrene | D59: 193-39-5 | E59: 0.00061 | F59: 0.022 | G59: 0.043 | H59: -- | I59: -- | J59: -- | K59: -- | L59: ='Identify Toxic Air Contaminants'!$E59*VLOOKUP($B59,'Calculate Dispersion Factors'!$B$7:$N$11,3,FALSE)/E59 -> 1.466529169e-06 | M59: ='Identify Toxic Air Contaminants'!$E59*VLOOKUP($B59,'Calculate Dispersion Factors'!$B$7:$N$11,4,FALSE)/F59 -> 3.027137591e-08 | N59: ='Identify Toxic Air Contaminants'!$E59*VLOOKUP($B59,'Calculate Dispersion Factors'!$B$7:$N$11,5,FALSE)/G59 -> 6.676324179e-07 | O59: -- | P59: -- | Q59: -- | R59: --
B60: CIA-1 | C60: Lead and compounds | D60: 7439-92-1 | E60: -- | F60: -- | G60: -- | H60: 0.15 | I60: 0.66 | J60: 0.66 | K60: 0.15 | L60: -- | M60: -- | N60: -- | O60: ='Identify Toxic Air Contaminants'!$E60*VLOOKUP($B60,'Calculate Dispersion Factors'!$B$7:$N$11,3,FALSE)/H60 -> 2.024928255e-07 | P60: ='Identify Toxic Air Contaminants'!$E60*VLOOKUP($B60,'Calculate Dispersion Factors'!$B$7:$N$11,4,FALSE)/I60 -> 3.426030819e-08 | Q60: ='Identify Toxic Air Contaminants'!$E60*VLOOKUP($B60,'Calculate Dispersion Factors'!$B$7:$N$11,5,FALSE)/J60 -> 1.476870091e-06 | R60: ='Identify Toxic Air Contaminants'!$F60*VLOOKUP($B60,'Calculate Dispersion Factors'!$B$7:$N$11,6,FALSE)/K60 -> 0.00016344029
B61: CIA-1 | C61: Manganese and compounds | D61: 7439-96-5 | E61: -- | F61: -- | G61: -- | H61: 0.09 | I61: 0.4 | J61: 0.4 | K61: 0.3 | L61: -- | M61: -- | N61: -- | O61: ='Identify Toxic Air Contaminants'!$E61*VLOOKUP($B61,'Calculate Dispersion Factors'!$B$7:$N$11,3,FALSE)/H61 -> 3.896799327e-07 | P61: ='Identify Toxic Air Contaminants'!$E61*VLOOKUP($B61,'Calculate Dispersion Factors'!$B$7:$N$11,4,FALSE)/I61 -> 6.527169053e-08 | Q61: ='Identify Toxic Air Contaminants'!$E61*VLOOKUP($B61,'Calculate Dispersion Factors'!$B$7:$N$11,5,FALSE)/J61 -> 2.813687693e-06 | R61: ='Identify Toxic Air Contaminants'!$F61*VLOOKUP($B61,'Calculate Dispersion Factors'!$B$7:$N$11,6,FALSE)/K61 -> 9.435801152e-05
B62: CIA-1 | C62: Mercury and compounds | D62: 7439-97-6 | E62: -- | F62: -- | G62: -- | H62: 0.077 | I62: 0.63 | J62: 0.63 | K62: 0.6 | L62: -- | M62: -- | N62: -- | O62: ='Identify Toxic Air Contaminants'!$E62*VLOOKUP($B62,'Calculate Dispersion Factors'!$B$7:$N$11,3,FALSE)/H62 -> 1.638659697e-08 | P62: ='Identify Toxic Air Contaminants'!$E62*VLOOKUP($B62,'Calculate Dispersion Factors'!$B$7:$N$11,4,FALSE)/I62 -> 1.490984915e-09 | Q62: ='Identify Toxic Air Contaminants'!$E62*VLOOKUP($B62,'Calculate Dispersion Factors'!$B$7:$N$11,5,FALSE)/J62 -> 6.427236479e-08 | R62: ='Identify Toxic Air Contaminants'!$F62*VLOOKUP($B62,'Calculate Dispersion Factors'!$B$7:$N$11,6,FALSE)/K62 -> 1.697374725e-06
B63: CIA-1 | C63: Naphthalene | D63: 91-20-3 | E63: 0.029 | F63: 0.76 | G63: 0.35 | H63: 3.7 | I63: 16 | J63: 16 | K63: 200 | L63: ='Identify Toxic Air Contaminants'!$E63*VLOOKUP($B63,'Calculate Dispersion Factors'!$B$7:$N$11,3,FALSE)/E63 -> 7.589508005e-05 | M63: ='Identify Toxic Air Contaminants'!$E63*VLOOKUP($B63,'Calculate Dispersion Factors'!$B$7:$N$11,4,FALSE)/F63 -> 2.155918456e-06 | N63: ='Identify Toxic Air Contaminants'!$E63*VLOOKUP($B63,'Calculate Dispersion Factors'!$B$7:$N$11,5,FALSE)/G63 -> 0.0002018035994 | O63: ='Identify Toxic Air Contaminants'!$E63*VLOOKUP($B63,'Calculate Dispersion Factors'!$B$7:$N$11,3,FALSE)/H63 -> 5.948533301e-07 | P63: ='Identify Toxic Air Contaminants'!$E63*VLOOKUP($B63,'Calculate Dispersion Factors'!$B$7:$N$11,4,FALSE)/I63 -> 1.024061267e-07 | Q63: ='Identify Toxic Air Contaminants'!$E63*VLOOKUP($B63,'Calculate Dispersion Factors'!$B$7:$N$11,5,FALSE)/J63 -> 4.414453738e-06 | R63: ='Identify Toxic Air Contaminants'!$F63*VLOOKUP($B63,'Calculate Dispersion Factors'!$B$7:$N$11,6,FALSE)/K63 -> 8.882416006e-06
B64: CIA-1 | C64: Nickel compounds, insoluble | D64: 365 | E64: 0.0038 | F64: 0.1 | G64: 0.046 | H64: 0.014 | I64: 0.062 | J64: 0.062 | K64: 0.2 | L64: ='Identify Toxic Air Contaminants'!$E64*VLOOKUP($B64,'Calculate Dispersion Factors'!$B$7:$N$11,3,FALSE)/E64 -> 4.005219321e-06 | M64: ='Identify Toxic Air Contaminants'!$E64*VLOOKUP($B64,'Calculate Dispersion Factors'!$B$7:$N$11,4,FALSE)/F64 -> 1.133037282e-07 | N64: ='Identify Toxic Air Contaminants'!$E64*VLOOKUP($B64,'Calculate Dispersion Factors'!$B$7:$N$11,5,FALSE)/G64 -> 1.061786988e-05 | O64: ='Identify Toxic Air Contaminants'!$E64*VLOOKUP($B64,'Calculate Dispersion Factors'!$B$7:$N$11,3,FALSE)/H64 -> 1.087130959e-06 | P64: ='Identify Toxic Air Contaminants'!$E64*VLOOKUP($B64,'Calculate Dispersion Factors'!$B$7:$N$11,4,FALSE)/I64 -> 1.827479488e-07 | Q64: ='Identify Toxic Air Contaminants'!$E64*VLOOKUP($B64,'Calculate Dispersion Factors'!$B$7:$N$11,5,FALSE)/J64 -> 7.877774426e-06 | R64: ='Identify Toxic Air Contaminants'!$F64*VLOOKUP($B64,'Calculate Dispersion Factors'!$B$7:$N$11,6,FALSE)/K64 -> 6.142276848e-05
B65: CIA-1 | C65: Perylene | D65: NoRBC | E65: -- | F65: -- | G65: -- | H65: -- | I65: -- | J65: -- | K65: --
B66: CIA-1 | C66: Phenanthrene | D66: NoRBC | E66: -- | F66: -- | G66: -- | H66: -- | I66: -- | J66: -- | K66: --
B67: CIA-1 | C67: Phosphorus and compounds | D67: NoRBC | E67: -- | F67: -- | G67: -- | H67: -- | I67: -- | J67: -- | K67: --
B68: CIA-1 | C68: Propylene | D68: 115-07-1 | E68: -- | F68: -- | G68: -- | H68: 3000 | I68: 13000 | J68: 13000 | K68: -- | L68: -- | M68: -- | N68: -- | O68: ='Identify Toxic Air Contaminants'!$E68*VLOOKUP($B68,'Calculate Dispersion Factors'!$B$7:$N$11,3,FALSE)/H68 -> 1.308483338e-08 | P68: ='Identify Toxic Air Contaminants'!$E68*VLOOKUP($B68,'Calculate Dispersion Factors'!$B$7:$N$11,4,FALSE)/I68 -> 2.247917668e-09 | Q68: ='Identify Toxic Air Contaminants'!$E68*VLOOKUP($B68,'Calculate Dispersion Factors'!$B$7:$N$11,5,FALSE)/J68 -> 9.690170769e-08 | R68: --
B69: CIA-1 | C69: Pyrene | D69: NoRBC | E69: -- | F69: -- | G69: -- | H69: -- | I69: -- | J69: -- | K69: --
B70: CIA-1 | C70: Selenium and compounds | D70: 7782-49-2 | E70: -- | F70: -- | G70: -- | H70: -- | I70: -- | J70: -- | K70: 2 | L70: -- | M70: -- | N70: -- | O70: -- | P70: -- | Q70: -- | R70: ='Identify Toxic Air Contaminants'!$F70*VLOOKUP($B70,'Calculate Dispersion Factors'!$B$7:$N$11,6,FALSE)/K70 -> 1.268646751e-05
B71: CIA-1 | C71: Silver and compounds | D71: NoRBC | E71: -- | F71: -- | G71: -- | H71: -- | I71: -- | J71: -- | K71: --
B72: CIA-1 | C72: Thallium and compounds | D72: NoRBC | E72: -- | F72: -- | G72: -- | H72: -- | I72: -- | J72: -- | K72: --
B73: CIA-1 | C73: Toluene | D73: 108-88-3 | E73: -- | F73: -- | G73: -- | H73: 5000 | I73: 22000 | J73: 22000 | K73: 7500 | L73: -- | M73: -- | N73: -- | O73: ='Identify Toxic Air Contaminants'!$E73*VLOOKUP($B73,'Calculate Dispersion Factors'!$B$7:$N$11,3,FALSE)/H73 -> 1.760606092e-09 | P73: ='Identify Toxic Air Contaminants'!$E73*VLOOKUP($B73,'Calculate Dispersion Factors'!$B$7:$N$11,4,FALSE)/I73 -> 2.97881701e-10 | Q73: ='Identify Toxic Air Contaminants'!$E73*VLOOKUP($B73,'Calculate Dispersion Factors'!$B$7:$N$11,5,FALSE)/J73 -> 1.2840882e-08 | R73: ='Identify Toxic Air Contaminants'!$F73*VLOOKUP($B73,'Calculate Dispersion Factors'!$B$7:$N$11,6,FALSE)/K73 -> 9.473717387e-07
B74: CIA-1 | C74: Xylene (mixture), including m-xylene, o-xylene, p-xylene | D74: 1330-20-7 | E74: -- | F74: -- | G74: -- | H74: 220 | I74: 970 | J74: 970 | K74: 8700 | L74: -- | M74: -- | N74: -- | O74: ='Identify Toxic Air Contaminants'!$E74*VLOOKUP($B74,'Calculate Dispersion Factors'!$B$7:$N$11,3,FALSE)/H74 -> 1.609662289e-08 | P74: ='Identify Toxic Air Contaminants'!$E74*VLOOKUP($B74,'Calculate Dispersion Factors'!$B$7:$N$11,4,FALSE)/I74 -> 2.71781579e-09 | Q74: ='Identify Toxic Air Contaminants'!$E74*VLOOKUP($B74,'Calculate Dispersion Factors'!$B$7:$N$11,5,FALSE)/J74 -> 1.171577567e-07 | R74: ='Identify Toxic Air Contaminants'!$F74*VLOOKUP($B74,'Calculate Dispersion Factors'!$B$7:$N$11,6,FALSE)/K74 -> 3.285395678e-07
B75: CIA-1 | C75: Zinc and compounds | D75: NoRBC | E75: -- | F75: -- | G75: -- | H75: -- | I75: -- | J75: -- | K75: --

Sheet Summarize Risk
B2: Summary of Risk
B5: TEU Identifier | C5: Cancer Risk | F5: Chronic Risk | I5: Acute
C6: Residential | D6: Child | E6: Worker | F6: Residential | G6: Child | H6: Worker
B7: EU-2 | C7: =SUMIF('Calculate Risk'!$B$7:$B$75,$B7,'Calculate Risk'!L$7:L$75) -> 0.01942923407 | D7: =SUMIF('Calculate Risk'!$B$7:$B$75,$B7,'Calculate Risk'!M$7:M$75) -> 0.000641089024 | E7: =SUMIF('Calculate Risk'!$B$7:$B$75,$B7,'Calculate Risk'!N$7:N$75) -> 0.008561682447 | F7: =SUMIF('Calculate Risk'!$B$7:$B$75,$B7,'Calculate Risk'!O$7:O$75) -> 0.00430931277 | G7: =SUMIF('Calculate Risk'!$B$7:$B$75,$B7,'Calculate Risk'!P$7:P$75) -> 0.0005885118689 | H7: =SUMIF('Calculate Risk'!$B$7:$B$75,$B7,'Calculate Risk'!Q$7:Q$75) -> 0.01132111617 | I7: =SUMIF('Calculate Risk'!$B$7:$B$75,$B7,'Calculate Risk'!R$7:R$75) -> 0.04337099963
B8: EU-3 | C8: =SUMIF('Calculate Risk'!$B$7:$B$75,$B8,'Calculate Risk'!L$7:L$75) -> 0 | D8: =SUMIF('Calculate Risk'!$B$7:$B$75,$B8,'Calculate Risk'!M$7:M$75) -> 0 | E8: =SUMIF('Calculate Risk'!$B$7:$B$75,$B8,'Calculate Risk'!N$7:N$75) -> 0 | F8: =SUMIF('Calculate Risk'!$B$7:$B$75,$B8,'Calculate Risk'!O$7:O$75) -> 0.003361595677 | G8: =SUMIF('Calculate Risk'!$B$7:$B$75,$B8,'Calculate Risk'!P$7:P$75) -> 0.0005150946226 | H8: =SUMIF('Calculate Risk'!$B$7:$B$75,$B8,'Calculate Risk'!Q$7:Q$75) -> 0.01909128923 | I8: =SUMIF('Calculate Risk'!$B$7:$B$75,$B8,'Calculate Risk'!R$7:R$75) -> 0.02565080003
B9: EU-4A | C9: =SUMIF('Calculate Risk'!$B$7:$B$75,$B9,'Calculate Risk'!L$7:L$75) -> 0 | D9: =SUMIF('Calculate Risk'!$B$7:$B$75,$B9,'Calculate Risk'!M$7:M$75) -> 0 | E9: =SUMIF('Calculate Risk'!$B$7:$B$75,$B9,'Calculate Risk'!N$7:N$75) -> 0 | F9: =SUMIF('Calculate Risk'!$B$7:$B$75,$B9,'Calculate Risk'!O$7:O$75) -> 0 | G9: =SUMIF('Calculate Risk'!$B$7:$B$75,$B9,'Calculate Risk'!P$7:P$75) -> 0 | H9: =SUMIF('Calculate Risk'!$B$7:$B$75,$B9,'Calculate Risk'!Q$7:Q$75) -> 0 | I9: =SUMIF('Calculate Risk'!$B$7:$B$75,$B9,'Calculate Risk'!R$7:R$75) -> 0.005412048974
B10: EU-4B | C10: =SUMIF('Calculate Risk'!$B$7:$B$75,$B10,'Calculate Risk'!L$7:L$75) -> 0 | D10: =SUMIF('Calculate Risk'!$B$7:$B$75,$B10,'Calculate Risk'!M$7:M$75) -> 0 | E10: =SUMIF('Calculate Risk'!$B$7:$B$75,$B10,'Calculate Risk'!N$7:N$75) -> 0 | F10: =SUMIF('Calculate Risk'!$B$7:$B$75,$B10,'Calculate Risk'!O$7:O$75) -> 0 | G10: =SUMIF('Calculate Risk'!$B$7:$B$75,$B10,'Calculate Risk'!P$7:P$75) -> 0 | H10: =SUMIF('Calculate Risk'!$B$7:$B$75,$B10,'Calculate Risk'!Q$7:Q$75) -> 0 | I10: =SUMIF('Calculate Risk'!$B$7:$B$75,$B10,'Calculate Risk'!R$7:R$75) -> 0.01421417372
B11: CIA-1 | C11: =SUMIF('Calculate Risk'!$B$7:$B$75,$B11,'Calculate Risk'!L$7:L$75) -> 0.0177659452 | D11: =SUMIF('Calculate Risk'!$B$7:$B$75,$B11,'Calculate Risk'!M$7:M$75) -> 0.0004961689588 | E11: =SUMIF('Calculate Risk'!$B$7:$B$75,$B11,'Calculate Risk'!N$7:N$75) -> 0.04543704574 | F11: =SUMIF('Calculate Risk'!$B$7:$B$75,$B11,'Calculate Risk'!O$7:O$75) -> 0.0004729834403 | G11: =SUMIF('Calculate Risk'!$B$7:$B$75,$B11,'Calculate Risk'!P$7:P$75) -> 6.40916389e-05 | H11: =SUMIF('Calculate Risk'!$B$7:$B$75,$B11,'Calculate Risk'!Q$7:Q$75) -> 0.002762818829 | I11: =SUMIF('Calculate Risk'!$B$7:$B$75,$B11,'Calculate Risk'!R$7:R$75) -> 0.005837849676
B12: Total Risk | C12: =SUM(C7:C11) -> 0.03719517927 | D12: 0.001137257983 | E12: 0.05399872819 | F12: 0.008143891887 | G12: 0.00116769813 | H12: 0.03317522423 | I12: 0.09448587203

Sheet RBCs
B2: CAS# | C2: Chemical | D2: Residential | F2: Non-Residential | J2: Acute
D3: Cancer | E3: Noncancer | F3: Child Cancer | G3: Child Noncancer | H3: Worker Cancer | I3: Worker Noncancer | J3: Acute
D4: (µg/m3) | E4: (µg/m3) | F4: (µg/m3) | G4: (µg/m3) | H4: (µg/m3) | I4: (µg/m3) | J4: (µg/m3)
B5: 75-07-0 | C5: Acetaldehyde | D5: 0.45 | E5: 140 | F5: 12 | G5: 620 | H5: 5.5 | I5: 620 | J5: 470
B6: 60-35-5 | C6: Acetamide | D6: 0.05 | E6: -- | F6: 1.3 | G6: -- | H6: 0.6 | I6: -- | J6: --
B7: 67-64-1 | C7: Acetone | D7: -- | E7: 31000 | F7: -- | G7: 140000 | H7: -- | I7: 140000 | J7: 62000
B8: 75-05-8 | C8: Acetonitrile | D8: -- | E8: 60 | F8: -- | G8: 260 | H8: -- | I8: 260 | J8: --
B9: 107-02-8 | C9: Acrolein | D9: -- | E9: 0.35 | F9: -- | G9: 1.5 | H9: -- | I9: 1.5 | J9: 6.9
B10: 79-06-1 | C10: Acrylamide | D10: 0.0059 | E10: 6 | F10: 0.062 | G10: 26 | H10: 0.12 | I10: 26 | J10: --
B11: 79-10-7 | C11: Acrylic acid | D11: -- | E11: 1 | F11: -- | G11: 4.4 | H11: -- | I11: 4.4 | J11: 6000
B12: 107-13-1 | C12: Acrylonitrile | D12: 0.015 | E12: 5 | F12: 0.38 | G12: 22 | H12: 0.18 | I12: 22 | J12: 220
B13: 309-00-2 | C13: Aldrin | D13: 0.0002 | E13: -- | F13: 0.0053 | G13: -- | H13: 0.0024 | I13: -- | J13: --
B14: 107-05-1 | C14: Allyl chloride | D14: 0.17 | E14: 1 | F14: 4.3 | G14: 4.4 | H14: 2 | I14: 4.4 | J14: --
B15: 7429-90-5 | C15: Aluminum and compounds | D15: -- | E15: 5 | F15: -- | G15: 22 | H15: -- | I15: 22 | J15: --
B16: 7664-41-7 | C16: Ammonia | D16: -- | E16: 500 | F16: -- | G16: 2200 | H16: -- | I16: 2200 | J16: 1200
B17: 62-53-3 | C17: Aniline | D17: 0.63 | E17: 1 | F17: 16 | G17: 4.4 | H17: 7.5 | I17: 4.4 | J17: --
B18: 7440-36-0 | C18: Antimony and compounds | D18: -- | E18: 0.3 | F18: -- | G18: 1.3 | H18: -- | I18: 1.3 | J18: 1
B19: 140-57-8 | C19: Aramite | D19: 0.14 | E19: -- | F19: 3.7 | G19: -- | H19: 1.7 | I19: -- | J19: --
B20: 7440-38-2 | C20: Arsenic and compounds | D20: 2.4e-05 | E20: 0.00017 | F20: 0.0013 | G20: 0.0024 | H20: 0.00062 | I20: 0.0024 | J20: 0.2
B21: 7784-42-1 | C21: Arsine | D21: -- | E21: 0.015 | F21: -- | G21: 0.066 | H21: -- | I21: 0.066 | J21: 0.2
B22: 1332-21-4 | C22: Asbestos | D22: 4.3e-06 | E22: -- | F22: 0.00011 | G22: -- | H22: 5.2e-05 | I22: -- | J22: --
B23: 103-33-3 | C23: Azobenzene | D23: 0.032 | E23: -- | F23: 0.84 | G23: -- | H23: 0.39 | I23: -- | J23: --
B24: 71-43-2 | C24: Benzene | D24: 0.13 | E24: 3 | F24: 3.3 | G24: 13 | H24: 1.5 | I24: 13 | J24: 29
B25: 92-87-5 | C25: Benzidine (and its salts) | D25: 4.2e-06 | E25: -- | F25: 4.4e-05 | G25: -- | H25: 8.6e-05 | I25: -- | J25: --
B26: 100-44-7 | C26: Benzyl chloride | D26: 0.02 | E26: 1 | F26: 0.53 | G26: 4.4 | H26: 0.24 | I26: 4.4 | J26: 240
B27: 7440-41-7 | C27: Beryllium and compounds | D27: 0.00042 | E27: 0.007 | F27: 0.011 | G27: 0.031 | H27: 0.005 | I27: 0.031 | J27: 0.02
B28: 111-44-4 | C28: Bis(2-chloroethyl) ether (DCEE) | D28: 0.0014 | E28: -- | F28: 0.037 | G28: -- | H28: 0.017 | I28: -- | J28: 120
B29: 542-88-1 | C29: Bis(chloromethyl) ether | D29: 7.7e-05 | E29: -- | F29: 0.002 | G29: -- | H29: 0.00092 | I29: -- | J29: 1.4
B30: 117-81-7 | C30: Bis(2-ethylhexyl) phthalate (DEHP) | D30: 0.08 | E30: -- | F30: 11 | G30: -- | H30: 5 | I30: -- | J30: --
B31: 75-25-2 | C31: Bromoform | D31: 0.91 | E31: -- | F31: 24 | G31: -- | H31: 11 | I31: -- | J31: --
B32: 74-83-9 | C32: Bromomethane (Methyl bromide) | D32: -- | E32: 5 | F32: -- | G32: 22 | H32: -- | I32: 22 | J32: 3900
B33: 106-94-5 | C33: 1-Bromopropane (n-propyl bromide) | D33: 0.48 | E33: 33 | F33: 12 | G33: 150 | H33: 5.7 | I33: 150 | J33: 1700
B34: 106-99-0 | C34: 1,3-Butadiene | D34: 0.033 | E34: 2 | F34: 0.86 | G34: 8.8 | H34: 0.4 | I34: 8.8 | J34: 660
B35: 78-93-3 | C35: 2-Butanone (Methyl ethyl ketone) | D35: -- | E35: 5000 | F35: -- | G35: 22000 | H35: -- | I35: 22000 | J35: 5000
B36: 78-92-2 | C36: sec-Butyl alcohol | D36: -- | E36: 30000 | F36: -- | G36: 130000 | H36: -- | I36: 130000 | J36: --
B37: 7440-43-9 | C37: Cadmium and compounds | D37: 0.00056 | E37: 0.005 | F37: 0.014 | G37: 0.037 | H37: 0.0067 | I37: 0.037 | J37: 0.03
B38: 105-60-2 | C38: Caprolactam | D38: -- | E38: 2.2 | F38: -- | G38: 9.7 | H38: -- | I38: 9.7 | J38: 50
B39: 75-15-0 | C39: Carbon disulfide | D39: -- | E39: 800 | F39: -- | G39: 3500 | H39: -- | I39: 3500 | J39: 6200
B40: 56-23-5 | C40: Carbon tetrachloride | D40: 0.17 | E40: 100 | F40: 4.3 | G40: 440 | H40: 2 | I40: 440 | J40: 1900
B41: 463-58-1 | C41: Carbonyl sulfide | D41: -- | E41: 10 | F41: -- | G41: 44 | H41: -- | I41: 44 | J41: 660
B42: 57-74-9 | C42: Chlordane | D42: 0.01 | E42: 0.02 | F42: 0.26 | G42: 0.088 | H42: 0.12 | I42: 0.088 | J42: 0.2
B43: 108171-26-2 | C43: Chlorinated paraffins | D43: 0.04 | E43: -- | F43: 1 | G43: -- | H43: 0.48 | I43: -- | J43: --
B44: 7782-50-5 | C44: Chlorine | D44: -- | E44: 0.15 | F44: -- | G44: 0.66 | H44: -- | I44: 0.66 | J44: 170
B45: 10049-04-4 | C45: Chlorine dioxide | D45: -- | E45: 0.6 | F45: -- | G45: 2.6 | H45: -- | I45: 2.6 | J45: 2.8
B46: 532-27-4 | C46: 2-Chloroacetophenone | D46: -- | E46: 0.03 | F46: -- | G46: 0.13 | H46: -- | I46: 0.13 | J46: --
B47: 108-90-7 | C47: Chlorobenzene | D47: -- | E47: 50 | F47: -- | G47: 220 | H47: -- | I47: 220 | J47: --
B48: 75-68-3 | C48: 1-Chloro-1,1-difluoroethane | D48: -- | E48: 50000 | F48: -- | G48: 220000 | H48: -- | I48: 220000 | J48: --
B49: 75-45-6 | C49: Chlorodifluoromethane (Freon 22) | D49: -- | E49: 50000 | F49: -- | G49: 220000 | H49: -- | I49: 220000 | J49: --
B50: 75-00-3 | C50: Chloroethane (Ethyl chloride) | D50: -- | E50: 30000 | F50: -- | G50: 130000 | H50: -- | I50: 130000 | J50: 40000
B51: 67-66-3 | C51: Chloroform | D51: -- | E51: 300 | F51: -- | G51: 1300 | H51: -- | I51: 1300 | J51: 490
B52: 74-87-3 | C52: Chloromethane (Methyl chloride) | D52: -- | E52: 90 | F52: -- | G52: 400 | H52: -- | I52: 400 | J52: 1000
B53: 95-83-0 | C53: 4-Chloro-o-phenylenediamine | D53: 0.22 | E53: -- | F53: 5.7 | G53: -- | H53: 2.6 | I53: -- | J53: --
B54: 76-06-2 | C54: Chloropicrin | D54: -- | E54: 0.4 | F54: -- | G54: 1.8 | H54: -- | I54: 1.8 | J54: 29
B55: 126-99-8 | C55: Chloroprene | D55: 0.0033 | E55: 20 | F55: 0.087 | G55: 88 | H55: 0.04 | I55: 88 | J55: --
B56: 95-69-2 | C56: p-Chloro-o-toluidine | D56: 0.013 | E56: -- | F56: 0.34 | G56: -- | H56: 0.16 | I56: -- | J56: --
B57: 18540-29-9 | C57: Chromium VI, chromate and dichromate particulate | D57: 3.1e-05 | E57: 0.083 | F57: 0.00052 | G57: 0.88 | H57: 0.001 | I57: 0.88 | J57: 0.3
B58: 7738-94-5 | C58: Chromium VI, chromic acid aerosol mist | D58: 3.1e-05 | E58: 0.0021 | F58: 0.00052 | G58: 0.022 | H58: 0.001 | I58: 0.022 | J58: 0.005
B59: 7440-48-4 | C59: Cobalt and compounds | D59: -- | E59: 0.1 | F59: -- | G59: 0.44 | H59: -- | I59: 0.44 | J59: --
B60: 148 | C60: Coke Oven Emissions | D60: 0.00095 | E60: -- | F60: 0.01 | G60: -- | H60: 0.019 | I60: -- | J60: --
B61: 7440-50-8 | C61: Copper and compounds | D61: -- | E61: -- | F61: -- | G61: -- | H61: -- | I61: -- | J61: 100
B62: 120-71-8 | C62: p-Cresidine | D62: 0.023 | E62: -- | F62: 0.6 | G62: -- | H62: 0.28 | I62: -- | J62: --
B63: 1319-77-3 | C63: Cresols (mixture), including m-cresol, o-cresol, p-cresol | D63: -- | E63: 600 | F63: -- | G63: 2600 | H63: -- | I63: 2600 | J63: --
B64: 135-20-6 | C64: Cupferron | D64: 0.016 | E64: -- | F64: 0.41 | G64: -- | H64: 0.19 | I64: -- | J64: --
B65: 74-90-8 | C65: Cyanide, Hydrogen | D65: -- | E65: 0.8 | F65: -- | G65: 3.5 | H65: -- | I65: 3.5 | J65: 340
B66: 110-82-7 | C66: Cyclohexane | D66: -- | E66: 6000 | F66: -- | G66: 26000 | H66: -- | I66: 26000 | J66: --
B67: 50-29-3 | C67: DDT | D67: 0.01 | E67: -- | F67: 0.27 | G67: -- | H67: 0.12 | I67: -- | J67: --
B68: 615-05-4 | C68: 2,4-Diaminoanisole | D68: 0.15 | E68: -- | F68: 3.9 | G68: -- | H68: 1.8 | I68: -- | J68: --
B69: 95-80-7 | C69: 2,4-Diaminotoluene (2,4-Toluene diamine) | D69: 0.00091 | E69: -- | F69: 0.024 | G69: -- | H69: 0.011 | I69: -- | J69: --
B70: 333-41-5 | C70: Diazinon | D70: -- | E70: -- | F70: -- | G70: -- | H70: -- | I70: -- | J70: 10
B71: 96-12-8 | C71: 1,2-Dibromo-3-chloropropane (DBCP) | D71: 9.8e-05 | E71: 0.2 | F71: 0.001 | G71: 0.88 | H71: 0.002 | I71: 0.88 | J71: 1.9
B72: 106-46-7 | C72: p-Dichlorobenzene (1,4-Dichlorobenzene) | D72: 0.091 | E72: 60 | F72: 2.4 | G72: 260 | H72: 1.1 | I72: 260 | J72: 12000
B73: 91-94-1 | C73: 3,3'-Dichlorobenzidine | D73: 0.0029 | E73: -- | F73: 0.076 | G73: -- | H73: 0.035 | I73: -- | J73: --
B74: 75-34-3 | C74: 1,1-Dichloroethane (Ethylidene dichloride) | D74: 0.63 | E74: -- | F74: 16 | G74: -- | H74: 7.5 | I74: -- | J74: --
B75: 156-60-5 | C75: trans-1,2-dichloroethene | D75: -- | E75: -- | F75: -- | G75: -- | H75: -- | I75: -- | J75: 790
B76: 75-09-2 | C76: Dichloromethane (Methylene chloride) | D76: 59 | E76: 600 | F76: 620 | G76: 2600 | H76: 1200 | I76: 2600 | J76: 2100
B77: 78-87-5 | C77: 1,2-Dichloropropane (Propylene dichloride) | D77: -- | E77: 4 | F77: -- | G77: 18 | H77: -- | I77: 18 | J77: 230
B78: 542-75-6 | C78: 1,3-Dichloropropene | D78: 0.25 | E78: 32 | F78: 6.5 | G78: 140 | H78: 3 | I78: 140 | J78: 36
B79: 62-73-7 | C79: Dichlorovos (DDVP) | D79: -- | E79: 0.54 | F79: -- | G79: 2.4 | H79: -- | I79: 2.4 | J79: 18
B80: 60-57-1 | C80: Dieldrin | D80: 0.00022 | E80: -- | F80: 0.0057 | G80: -- | H80: 0.0026 | I80: -- | J80: --
B81: 200 | C81: Diesel Particulate Matter | D81: 0.1 | E81: 5 | F81: 2.6 | G81: 22 | H81: 1.2 | I81: 22 | J81: --
B82: 111-42-2 | C82: Diethanolamine | D82: -- | E82: 0.2 | F82: -- | G82: 0.88 | H82: -- | I82: 0.88 | J82: --
B83: 112-34-5 | C83: Diethylene glycol monobutyl ether | D83: -- | E83: 0.1 | F83: -- | G83: 0.44 | H83: -- | I83: 0.44 | J83: --
B84: 111-90-0 | C84: Diethylene glycol monoethyl ether | D84: -- | E84: 0.3 | F84: -- | G84: 1.3 | H84: -- | I84: 1.3 | J84: --
B85: 75-37-6 | C85: 1,1-Difluoroethane | D85: -- | E85: 40000 | F85: -- | G85: 180000 | H85: -- | I85: 180000 | J85: --
B86: 60-11-7 | C86: 4-Dimethylaminoazobenzene | D86: 0.00077 | E86: -- | F86: 0.02 | G86: -- | H86: 0.0092 | I86: -- | J86: --
B87: 68-12-2 | C87: Dimethyl formamide | D87: -- | E87: 80 | F87: -- | G87: 350 | H87: -- | I87: 350 | J87: --
B88: 57-14-7 | C88: 1,1-Dimethylhydrazine | D88: -- | E88: -- | F88: -- | G88: -- | H88: -- | I88: -- | J88: 0.49
B89: 121-14-2 | C89: 2,4-Dinitrotoluene | D89: 0.011 | E89: -- | F89: 0.29 | G89: -- | H89: 0.13 | I89: -- | J89: --
B90: 123-91-1 | C90: 1,4-Dioxane | D90: 0.2 | E90: 30 | F90: 5.2 | G90: 130 | H90: 2.4 | I90: 130 | J90: 7200
B91: 122-66-7 | C91: 1,2-Diphenylhydrazine (Hydrazobenzene) | D91: 0.0045 | E91: -- | F91: 0.12 | G91: -- | H91: 0.055 | I91: -- | J91: --
B92: 1937-37-7 | C92: Direct Black 38 | D92: 7.1e-06 | E92: -- | F92: 0.00019 | G92: -- | H92: 8.6e-05 | I92: -- | J92: --
B93: 2602-46-2 | C93: Direct Blue 6 | D93: 7.1e-06 | E93: -- | F93: 0.00019 | G93: -- | H93: 8.6e-05 | I93: -- | J93: --
B94: 16071-86-6 | C94: Direct Brown 95 (technical grade) | D94: 7.1e-06 | E94: -- | F94: 0.00019 | G94: -- | H94: 8.6e-05 | I94: -- | J94: --
B95: 298-04-4 | C95: Disulfoton | D95: -- | E95: -- | F95: -- | G95: -- | H95: -- | I95: -- | J95: 6
B96: 106-89-8 | C96: Epichlorohydrin | D96: 0.043 | E96: 3 | F96: 1.1 | G96: 13 | H96: 0.52 | I96: 13 | J96: 1300
B97: 106-88-7 | C97: 1,2-Epoxybutane | D97: -- | E97: 20 | F97: -- | G97: 88 | H97: -- | I97: 88 | J97: --
B98: 140-88-5 | C98: Ethyl acrylate | D98: -- | E98: 8 | F98: -- | G98: 35 | H98: -- | I98: 35 | J98: --
B99: 100-41-4 | C99: Ethyl benzene | D99: 0.4 | E99: 260 | F99: 10 | G99: 1100 | H99: 4.8 | I99: 1100 | J99: 22000
B100: 106-93-4 | C100: Ethylene dibromide (EDB, 1,2-Dibromoethane) | D100: 0.0017 | E100: 9 | F100: 0.043 | G100: 40 | H100: 0.02 | I100: 40 | J100: --
B101: 107-06-2 | C101: Ethylene dichloride (EDC, 1,2-Dichloroethane) | D101: 0.038 | E101: 7 | F101: 1 | G101: 31 | H101: 0.46 | I101: 31 | J101: --
B102: 107-21-1 | C102: Ethylene glycol | D102: -- | E102: 400 | F102: -- | G102: 1800 | H102: -- | I102: 1800 | J102: 2000
B103: 111-76-2 | C103: Ethylene glycol monobutyl ether | D103: -- | E103: 82 | F103: -- | G103: 360 | H103: -- | I103: 360 | J103: 29000
B104: 110-80-5 | C104: Ethylene glycol monoethyl ether | D104: -- | E104: 70 | F104: -- | G104: 310 | H104: -- | I104: 310 | J104: 370
B105: 111-15-9 | C105: Ethylene glycol monoethyl ether acetate | D105: -- | E105: 60 | F105: -- | G105: 260 | H105: -- | I105: 260 | J105: 140
B106: 109-86-4 | C106: Ethylene glycol monomethyl ether | D106: -- | E106: 60 | F106: -- | G106: 260 | H106: -- | I106: 260 | J106: 93
B107: 110-49-6 | C107: Ethylene glycol monomethyl ether acetate | D107: -- | E107: 1 | F107: -- | G107: 4.4 | H107: -- | I107: 4.4 | J107: --
B108: 75-21-8 | C108: Ethylene oxide | D108: 0.0002 | E108: 30 | F108: 0.0021 | G108: 130 | H108: 0.004 | I108: 130 | J108: 160
B109: 96-45-7 | C109: Ethylene thiourea | D109: 0.077 | E109: -- | F109: 2 | G109: -- | H109: 0.92 | I109: -- | J109: --
B110: 239 | C110: Fluorides | D110: -- | E110: 2.3 | F110: -- | G110: 20 | H110: -- | I110: 20 | J110: 240
B111: 7782-41-4 | C111: Fluorine gas | D111: -- | E111: -- | F111: -- | G111: -- | H111: -- | I111: -- | J111: 16
B112: 50-00-0 | C112: Formaldehyde | D112: 0.17 | E112: 9 | F112: 4.3 | G112: 40 | H112: 2 | I112: 40 | J112: 49
B113: 111-30-8 | C113: Glutaraldehyde | D113: -- | E113: 0.08 | F113: -- | G113: 0.35 | H113: -- | I113: 0.35 | J113: 4.1
B114: 76-44-8 | C114: Heptachlor | D114: 0.00077 | E114: -- | F114: 0.02 | G114: -- | H114: 0.0092 | I114: -- | J114: --
B115: 1024-57-3 | C115: Heptachlor epoxide | D115: 0.00038 | E115: -- | F115: 0.01 | G115: -- | H115: 0.0046 | I115: -- | J115: --
B116: 118-74-1 | C116: Hexachlorobenzene | D116: 0.002 | E116: -- | F116: 0.051 | G116: -- | H116: 0.024 | I116: -- | J116: --
B117: 87-68-3 | C117: Hexachlorobutadiene | D117: 0.045 | E117: -- | F117: 1.2 | G117: -- | H117: 0.55 | I117: -- | J117: --
B118: 608-73-1 | C118: Hexachlorocyclohexanes (mixture) including but not limited to: | D118: 0.00017 | E118: -- | F118: 0.018 | G118: -- | H118: 0.0084 | I118: -- | J118: --
B119: 319-84-6 | C119: Hexachlorocyclohexane, alpha- | D119: 0.00017 | E119: -- | F119: 0.018 | G119: -- | H119: 0.0084 | I119: -- | J119: --
B120: 319-85-7 | C120: Hexachlorocyclohexane, beta- | D120: 0.00017 | E120: -- | F120: 0.018 | G120: -- | H120: 0.0084 | I120: -- | J120: --
B121: 58-89-9 | C121: Hexachlorocyclohexane, gamma- (Lindane) | D121: 0.0006 | E121: -- | F121: 0.065 | G121: -- | H121: 0.03 | I121: -- | J121: --
B122: 77-47-4 | C122: Hexachlorocyclopentadiene | D122: -- | E122: 0.2 | F122: -- | G122: 0.88 | H122: -- | I122: 0.88 | J122: 110
B123: 67-72-1 | C123: Hexachloroethane | D123: -- | E123: 30 | F123: -- | G123: 130 | H123: -- | I123: 130 | J123: 58000
B124: 822-06-0 | C124: Hexamethylene-1,6-diisocyanate | D124: -- | E124: 0.069 | F124: -- | G124: 0.3 | H124: -- | I124: 0.3 | J124: 0.21
B125: 110-54-3 | C125: Hexane | D125: -- | E125: 700 | F125: -- | G125: 3100 | H125: -- | I125: 3100 | J125: --
B126: 302-01-2 | C126: Hydrazine | D126: 0.0002 | E126: 0.03 | F126: 0.0053 | G126: 0.13 | H126: 0.0024 | I126: 0.13 | J126: 5.2
B127: 7647-01-0 | C127: Hydrochloric acid | D127: -- | E127: 20 | F127: -- | G127: 88 | H127: -- | I127: 88 | J127: 2100
B128: 7664-39-3 | C128: Hydrogen fluoride | D128: -- | E128: 2.1 | F128: -- | G128: 19 | H128: -- | I128: 19 | J128: 16
B129: 7783-06-4 | C129: Hydrogen sulfide | D129: -- | E129: 2 | F129: -- | G129: 8.8 | H129: -- | I129: 8.8 | J129: 98
B130: 78-59-1 | C130: Isophorone | D130: -- | E130: 2000 | F130: -- | G130: 8800 | H130: -- | I130: 8800 | J130: --
B131: 67-63-0 | C131: Isopropyl alcohol | D131: -- | E131: 200 | F131: -- | G131: 880 | H131: -- | I131: 880 | J131: 3200
B132: 98-82-8 | C132: Isopropylbenzene (Cumene) | D132: -- | E132: 400 | F132: -- | G132: 1800 | H132: -- | I132: 1800 | J132: --
B133: 7439-92-1 | C133: Lead and compounds | D133: -- | E133: 0.15 | F133: -- | G133: 0.66 | H133: -- | I133: 0.66 | J133: 0.15
B134: 108-31-6 | C134: Maleic anhydride | D134: -- | E134: 0.7 | F134: -- | G134: 3.1 | H134: -- | I134: 3.1 | J134: --
B135: 7439-96-5 | C135: Manganese and compounds | D135: -- | E135: 0.09 | F135: -- | G135: 0.4 | H135: -- | I135: 0.4 | J135: 0.3
B136: 7439-97-6 | C136: Mercury and compounds | D136: -- | E136: 0.077 | F136: -- | G136: 0.63 | H136: -- | I136: 0.63 | J136: 0.6
B137: 67-56-1 | C137: Methanol | D137: -- | E137: 4000 | F137: -- | G137: 18000 | H137: -- | I137: 18000 | J137: 28000
B138: 101-14-4 | C138: 4,4'-Methylene bis(2-chloroaniline) (MOCA) | D138: 0.0023 | E138: -- | F138: 0.06 | G138: -- | H138: 0.028 | I138: -- | J138: --
B139: 101-77-9 | C139: 4,4'-Methylenedianiline (and its dichloride) | D139: 0.0003 | E139: 20 | F139: 0.023 | G139: 88 | H139: 0.01 | I139: 88 | J139: --
B140: 101-68-8 | C140: Methylene diphenyl diisocyanate (MDI) | D140: -- | E140: 0.08 | F140: -- | G140: 0.35 | H140: -- | I140: 0.35 | J140: 12
B141: 108-10-1 | C141: Methyl isobutyl ketone (MIBK, Hexone) | D141: -- | E141: 3000 | F141: -- | G141: 13000 | H141: -- | I141: 13000 | J141: --
B142: 624-83-9 | C142: Methyl isocyanate | D142: -- | E142: 1 | F142: -- | G142: 4.4 | H142: -- | I142: 4.4 | J142: --
B143: 80-62-6 | C143: Methyl methacrylate | D143: -- | E143: 700 | F143: -- | G143: 3100 | H143: -- | I143: 3100 | J143: --
B144: 1634-04-4 | C144: Methyl tert-butyl ether | D144: 3.8 | E144: 8000 | F144: 100 | G144: 35000 | H144: 46 | I144: 35000 | J144: 8000
B145: 90-94-8 | C145: Michler's ketone | D145: 0.004 | E145: -- | F145: 0.1 | G145: -- | H145: 0.048 | I145: -- | J145: --
B146: 91-20-3 | C146: Naphthalene | D146: 0.029 | E146: 3.7 | F146: 0.76 | G146: 16 | H146: 0.35 | I146: 16 | J146: 200
B147: 365 | C147: Nickel compounds, insoluble | D147: 0.0038 | E147: 0.014 | F147: 0.1 | G147: 0.062 | H147: 0.046 | I147: 0.062 | J147: 0.2
B148: 368 | C148: Nickel compounds, soluble | D148: -- | E148: 0.014 | F148: -- | G148: 0.062 | H148: -- | I148: 0.062 | J148: 0.2
B149: 7697-37-2 | C149: Nitric acid | D149: -- | E149: -- | F149: -- | G149: -- | H149: -- | I149: -- | J149: 86
B150: 98-95-3 | C150: Nitrobenzene | D150: 0.025 | E150: 9 | F150: 0.65 | G150: 40 | H150: 0.3 | I150: 40 | J150: --
B151: 79-46-9 | C151: 2-Nitropropane | D151: -- | E151: 20 | F151: -- | G151: 88 | H151: -- | I151: 88 | J151: --
B152: 924-16-3 | C152: N-Nitrosodi-n-butylamine | D152: 0.00032 | E152: -- | F152: 0.0084 | G152: -- | H152: 0.0039 | I152: -- | J152: --
B153: 55-18-5 | C153: N-Nitrosodiethylamine | D153: 5.9e-05 | E153: -- | F153: 0.00062 | G153: -- | H153: 0.0012 | I153: -- | J153: --
B154: 62-75-9 | C154: N-Nitrosodimethylamine | D154: 0.00013 | E154: -- | F154: 0.0013 | G154: -- | H154: 0.0026 | I154: -- | J154: --
B155: 86-30-6 | C155: N-Nitrosodiphenylamine | D155: 0.38 | E155: -- | F155: 10 | G155: -- | H155: 4.6 | I155: -- | J155: --
B156: 156-10-5 | C156: p-Nitrosodiphenylamine | D156: 0.16 | E156: -- | F156: 4.1 | G156: -- | H156: 1.9 | I156: -- | J156: --
B157: 621-64-7 | C157: N-Nitrosodi-n-propylamine | D157: 0.0005 | E157: -- | F157: 0.013 | G157: -- | H157: 0.006 | I157: -- | J157: --
B158: 10595-95-6 | C158: N-Nitrosomethylethylamine | D158: 0.00016 | E158: -- | F158: 0.0041 | G158: -- | H158: 0.0019 | I158: -- | J158: --
B159: 59-89-2 | C159: N-Nitrosomorpholine | D159: 0.00053 | E159: -- | F159: 0.014 | G159: -- | H159: 0.0063 | I159: -- | J159: --
B160: 100-75-4 | C160: N-Nitrosopiperidine | D160: 0.00037 | E160: -- | F160: 0.0096 | G160: -- | H160: 0.0044 | I160: -- | J160: --
B161: 930-55-2 | C161: N-Nitrosopyrrolidine | D161: 0.0017 | E161: -- | F161: 0.043 | G161: -- | H161: 0.02 | I161: -- | J161: --
B162: 8014-95-7 | C162: Oleum (fuming sulfuric acid) | D162: -- | E162: -- | F162: -- | G162: -- | H162: -- | I162: -- | J162: 120
B163: 56-38-2 | C163: Parathion | D163: -- | E163: -- | F163: -- | G163: -- | H163: -- | I163: -- | J163: 0.02
B164: 87-86-5 | C164: Pentachlorophenol | D164: 0.2 | E164: -- | F164: 5.1 | G164: -- | H164: 2.4 | I164: -- | J164: --
B165: 108-95-2 | C165: Phenol | D165: -- | E165: 200 | F165: -- | G165: 880 | H165: -- | I165: 880 | J165: 5800
B166: 75-44-5 | C166: Phosgene | D166: -- | E166: 0.3 | F166: -- | G166: 1.3 | H166: -- | I166: 1.3 | J166: 4
B167: 7803-51-2 | C167: Phosphine | D167: -- | E167: 0.8 | F167: -- | G167: 3.5 | H167: -- | I167: 3.5 | J167: --
B168: 7664-38-2 | C168: Phosphoric acid | D168: -- | E168: 10 | F168: -- | G168: 44 | H168: -- | I168: 44 | J168: --
B169: 12185-10-3 | C169: Phosphorus, white | D169: -- | E169: 9 | F169: -- | G169: 40 | H169: -- | I169: 40 | J169: 20
B170: 85-44-9 | C170: Phthalic anhydride | D170: -- | E170: 20 | F170: -- | G170: 88 | H170: -- | I170: 88 | J170: --
B171: 447 | C171: Polybrominated diphenyl ethers (PBDEs) | D171: -- | E171: -- | F171: -- | G171: -- | H171: -- | I171: -- | J171: 6
B172: 1336-36-3 | C172: Polychlorinated biphenyls (PCBs) | D172: 0.00053 | E172: -- | F172: 0.02 | G172: -- | H172: 0.0092 | I172: -- | J172: --
B173: 645 | C173: Polychlorinated biphenyls (PCBs) TEQ | D173: 1e-09 | E173: 1.3e-07 | F173: 9e-08 | G173: 2.6e-05 | H173: 4.2e-08 | I173: 2.6e-05 | J173: --
B174: 32598-13-3 | C174: PCB 77 [3,3',4,4'-tetrachlorobiphenyl] | D174: 1e-05 | E174: 0.0013 | F174: 0.0009 | G174: 0.26 | H174: 0.00042 | I174: 0.26 | J174: --
B175: 70362-50-4 | C175: PCB 81 [3,4,4',5-tetrachlorobiphenyl] | D175: 3.4e-06 | E175: 0.00042 | F175: 0.0003 | G175: 0.085 | H175: 0.00014 | I175: 0.085 | J175: --
B176: 32598-14-4 | C176: PCB 105 [2,3,3',4,4'-pentachlorobiphenyl] | D176: 3.4e-05 | E176: 0.0042 | F176: 0.003 | G176: 0.85 | H176: 0.0014 | I176: 0.85 | J176: --
B177: 74472-37-0 | C177: PCB 114 [2,3,4,4',5-pentachlorobiphenyl] | D177: 3.4e-05 | E177: 0.0042 | F177: 0.003 | G177: 0.85 | H177: 0.0014 | I177: 0.85 | J177: --
B178: 31508-00-6 | C178: PCB 118 [2,3',4,4',5-pentachlorobiphenyl] | D178: 3.4e-05 | E178: 0.0042 | F178: 0.003 | G178: 0.85 | H178: 0.0014 | I178: 0.85 | J178: --
B179: 65510-44-3 | C179: PCB 123 [2,3',4,4',5'-pentachlorobiphenyl] | D179: 3.4e-05 | E179: 0.0042 | F179: 0.003 | G179: 0.85 | H179: 0.0014 | I179: 0.85 | J179: --
B180: 57465-28-8 | C180: PCB 126 [3,3',4,4',5-pentachlorobiphenyl] | D180: 1e-08 | E180: 1.3e-06 | F180: 9e-07 | G180: 0.00026 | H180: 4.2e-07 | I180: 0.00026 | J180: --
B181: 38380-08-4 | C181: PCB 156 [2,3,3',4,4',5-hexachlorobiphenyl] | D181: 3.4e-05 | E181: 0.0042 | F181: 0.003 | G181: 0.85 | H181: 0.0014 | I181: 0.85 | J181: --
B182: 69782-90-7 | C182: PCB 157 [2,3,3',4,4',5'-hexachlorobiphenyl] | D182: 3.4e-05 | E182: 0.0042 | F182: 0.003 | G182: 0.85 | H182: 0.0014 | I182: 0.85 | J182: --
B183: 52663-72-6 | C183: PCB 167 [2,3',4,4',5,5'-hexachlorobiphenyl] | D183: 3.4e-05 | E183: 0.0042 | F183: 0.003 | G183: 0.85 | H183: 0.0014 | I183: 0.85 | J183: --
B184: 32774-16-6 | C184: PCB 169 [3,3',4,4',5,5'-hexachlorobiphenyl] | D184: 3.4e-08 | E184: 4.2e-06 | F184: 3e-06 | G184: 0.00085 | H184: 1.4e-06 | I184: 0.00085 | J184: --
B185: 39635-31-9 | C185: PCB 189 [2,3,3',4,4',5,5'-heptachlorobiphenyl] | D185: 0.00088 | E185: 1.3 | F185: 0.023 | G185: 5.7 | H185: 0.011 | I185: 5.7 | J185: --
B186: 646 | C186: Polychlorinated dibenzo-p-dioxins (PCDDs) & dibenzofurans (PCDFs) TEQ | D186: 1e-09 | E186: 1.3e-07 | F186: 9e-08 | G186: 2.6e-05 | H186: 4.2e-08 | I186: 2.6e-05 | J186: --
B187: 1746-01-6 | C187: 2,3,7,8-Tetrachlorodibenzo-p-dioxin (TCDD) | D187: 1e-09 | E187: 1.3e-07 | F187: 9e-08 | G187: 2.6e-05 | H187: 4.2e-08 | I187: 2.6e-05 | J187: --
B188: 40321-76-4 | C188: 1,2,3,7,8-Pentachlorodibenzo-p-dioxin (PeCDD) | D188: 1e-09 | E188: 1.3e-07 | F188: 9e-08 | G188: 2.6e-05 | H188: 4.2e-08 | I188: 2.6e-05 | J188: --
B189: 39227-28-6 | C189: 1,2,3,4,7,8-Hexachlorodibenzo-p-dioxin (HxCDD) | D189: 1e-08 | E189: 1.3e-06 | F189: 9e-07 | G189: 0.00026 | H189: 4.2e-07 | I189: 0.00026 | J189: --
B190: 57653-85-7 | C190: 1,2,3,6,7,8-Hexachlorodibenzo-p-dioxin (HxCDD) | D190: 1e-08 | E190: 1.3e-06 | F190: 9e-07 | G190: 0.00026 | H190: 4.2e-07 | I190: 0.00026 | J190: --
B191: 19408-74-3 | C191: 1,2,3,7,8,9-Hexachlorodibenzo-p-dioxin (HxCDD) | D191: 1e-08 | E191: 1.3e-06 | F191: 9e-07 | G191: 0.00026 | H191: 4.2e-07 | I191: 0.00026 | J191: --
B192: 35822-46-9 | C192: 1,2,3,4,6,7,8-Heptachlorodibenzo-p-dioxin (HpCDD) | D192: 1e-07 | E192: 1.3e-05 | F192: 9e-06 | G192: 0.0026 | H192: 4.2e-06 | I192: 0.0026 | J192: --
B193: 3268-87-9 | C193: Octachlorodibenzo-p-dioxin (OCDD) | D193: 3.4e-06 | E193: 0.00042 | F193: 0.0003 | G193: 0.085 | H193: 0.00014 | I193: 0.085 | J193: --
B194: 51207-31-9 | C194: 2,3,7,8-Tetrachlorodibenzofuran (TcDF) | D194: 1e-08 | E194: 1.3e-06 | F194: 9e-07 | G194: 0.00026 | H194: 4.2e-07 | I194: 0.00026 | J194: --
B195: 57117-41-6 | C195: 1,2,3,7,8-Pentachlorodibenzofuran (PeCDF) | D195: 3.4e-08 | E195: 4.2e-06 | F195: 3e-06 | G195: 0.00085 | H195: 1.4e-06 | I195: 0.00085 | J195: --
B196: 57117-31-4 | C196: 2,3,4,7,8-Pentachlorodibenzofuran (PeCDF) | D196: 3.4e-09 | E196: 4.2e-07 | F196: 3e-07 | G196: 8.5e-05 | H196: 1.4e-07 | I196: 8.5e-05 | J196: --
B197: 70648-26-9 | C197: 1,2,3,4,7,8-Hexachlorodibenzofuran (HxCDF) | D197: 1e-08 | E197: 1.3e-06 | F197: 9e-07 | G197: 0.00026 | H197: 4.2e-07 | I197: 0.00026 | J197: --
B198: 57117-44-9 | C198: 1,2,3,6,7,8-Hexachlorodibenzofuran (HxCDF) | D198: 1e-08 | E198: 1.3e-06 | F198: 9e-07 | G198: 0.00026 | H198: 4.2e-07 | I198: 0.00026 | J198: --
B199: 72918-21-9 | C199: 1,2,3,7,8,9-Hexachlorodibenzofuran (HxCDF) | D199: 1e-08 | E199: 1.3e-06 | F199: 9e-07 | G199: 0.00026 | H199: 4.2e-07 | I199: 0.00026 | J199: --
B200: 60851-34-5 | C200: 2,3,4,6,7,8-Hexachlorodibenzofuran (HxCDF) | D200: 1e-08 | E200: 1.3e-06 | F200: 9e-07 | G200: 0.00026 | H200: 4.2e-07 | I200: 0.00026 | J200: --
B201: 67562-39-4 | C201: 1,2,3,4,6,7,8-Heptachlorodibenzofuran (HpCDF) | D201: 1e-07 | E201: 1.3e-05 | F201: 9e-06 | G201: 0.0026 | H201: 4.2e-06 | I201: 0.0026 | J201: --
... 64 more rows

Sheet TACs
B2: Chemical | C2: CAS# | D2: RBC?
B3: Acetaldehyde | C3: 75-07-0
B4: Acetamide | C4: 60-35-5
B5: Acetone | C5: 67-64-1
B6: Acetonitrile | C6: 75-05-8
B7: Acetophenone | C7: 98-86-2 | D7: =IFERROR(VLOOKUP(C7,RBCs!$B$5:$C$265,2,FALSE),"NoRBC") -> NoRBC
B8: Acrolein | C8: 107-02-8
B9: Acrylamide | C9: 79-06-1
B10: Acrylic acid | C10: 79-10-7
B11: Acrylonitrile | C11: 107-13-1
B12: Actinomycin D | C12: 50-76-0 | D12: =IFERROR(VLOOKUP(C12,RBCs!$B$5:$C$265,2,FALSE),"NoRBC") -> NoRBC
B13: Alar | C13: 1596-84-5 | D13: =IFERROR(VLOOKUP(C13,RBCs!$B$5:$C$265,2,FALSE),"NoRBC") -> NoRBC
B14: Aldrin | C14: 309-00-2
B15: Allyl chloride | C15: 107-05-1
B16: Aluminum and compounds | C16: 7429-90-5
B17: Aluminum oxide (fibrous forms) | C17: 1344-28-1 | D17: =IFERROR(VLOOKUP(C17,RBCs!$B$5:$C$265,2,FALSE),"NoRBC") -> NoRBC
B18: ortho-Aminoazotoluene | C18: 97-56-3 | D18: =IFERROR(VLOOKUP(C18,RBCs!$B$5:$C$265,2,FALSE),"NoRBC") -> NoRBC
B19: 3-Amino-9-ethylcarbazole hydrochloride | C19: 6109-97-3 | D19: =IFERROR(VLOOKUP(C19,RBCs!$B$5:$C$265,2,FALSE),"NoRBC") -> NoRBC
B20: 2-Amino-3-methyl-9H pyrido[2,3-b]indole | C20: 68006-83-7 | D20: =IFERROR(VLOOKUP(C20,RBCs!$B$5:$C$265,2,FALSE),"NoRBC") -> NoRBC
B21: 1-Amino-2-methylanthraquinone | C21: 82-28-0 | D21: =IFERROR(VLOOKUP(C21,RBCs!$B$5:$C$265,2,FALSE),"NoRBC") -> NoRBC
B22: 2-Amino-3-methylimidazo-[4,5-f]quinoline | C22: 76180-96-6 | D22: =IFERROR(VLOOKUP(C22,RBCs!$B$5:$C$265,2,FALSE),"NoRBC") -> NoRBC
B23: 2-Amino-5-(5-Nitro-2-Furyl)-1,3,4-Thiadiazol | C23: 712-68-5 | D23: =IFERROR(VLOOKUP(C23,RBCs!$B$5:$C$265,2,FALSE),"NoRBC") -> NoRBC
B24: A-alpha-c(2-amino-9h-pyrido[2,3-b]indole) | C24: 26148-68-5 | D24: =IFERROR(VLOOKUP(C24,RBCs!$B$5:$C$265,2,FALSE),"NoRBC") -> NoRBC
B25: 4-Aminobiphenyl | C25: 92-67-1 | D25: =IFERROR(VLOOKUP(C25,RBCs!$B$5:$C$265,2,FALSE),"NoRBC") -> NoRBC
B26: Amitrole | C26: 61-82-5 | D26: =IFERROR(VLOOKUP(C26,RBCs!$B$5:$C$265,2,FALSE),"NoRBC") -> NoRBC
B27: Ammonia | C27: 7664-41-7
B28: Ammonium bisulfate | C28: 7803-63-6 | D28: =IFERROR(VLOOKUP(C28,RBCs!$B$5:$C$265,2,FALSE),"NoRBC") -> NoRBC
B29: Ammonium nitrate | C29: 6484-52-2 | D29: =IFERROR(VLOOKUP(C29,RBCs!$B$5:$C$265,2,FALSE),"NoRBC") -> NoRBC
B30: Ammonium sulfate | C30: 7783-20-2 | D30: =IFERROR(VLOOKUP(C30,RBCs!$B$5:$C$265,2,FALSE),"NoRBC") -> NoRBC
B31: Aniline | C31: 62-53-3
B32: o-Anisidine | C32: 90-04-0 | D32: =IFERROR(VLOOKUP(C32,RBCs!$B$5:$C$265,2,FALSE),"NoRBC") -> NoRBC
B33: o-Anisidine hydrochloride | C33: 134-29-2 | D33: =IFERROR(VLOOKUP(C33,RBCs!$B$5:$C$265,2,FALSE),"NoRBC") -> NoRBC
B34: Antimony and compounds | C34: 7440-36-0
B35: Antimony trioxide | C35: 1309-64-4 | D35: =IFERROR(VLOOKUP(C35,RBCs!$B$5:$C$265,2,FALSE),"NoRBC") -> NoRBC
B36: Aramite | C36: 140-57-8
B37: Arsenic and compounds | C37: 7440-38-2
B38: Arsine | C38: 7784-42-1
B39: Asbestos | C39: 1332-21-4
B40: Auramine | C40: 492-80-8 | D40: =IFERROR(VLOOKUP(C40,RBCs!$B$5:$C$265,2,FALSE),"NoRBC") -> NoRBC
B41: Azaserine | C41: 115-02-6 | D41: =IFERROR(VLOOKUP(C41,RBCs!$B$5:$C$265,2,FALSE),"NoRBC") -> NoRBC
B42: Azathioprine | C42: 446-86-6 | D42: =IFERROR(VLOOKUP(C42,RBCs!$B$5:$C$265,2,FALSE),"NoRBC") -> NoRBC
B43: Tris-(1-Aziridinyl)phosphine sulfide | C43: 52-24-4 | D43: =IFERROR(VLOOKUP(C43,RBCs!$B$5:$C$265,2,FALSE),"NoRBC") -> NoRBC
B44: Azobenzene | C44: 103-33-3
B45: Barium and compounds | C45: 7440-39-3 | D45: =IFERROR(VLOOKUP(C45,RBCs!$B$5:$C$265,2,FALSE),"NoRBC") -> NoRBC
B46: Benzene | C46: 71-43-2
B47: Benzidine (and its salts) | C47: 92-87-5
B48: Benzofuran | C48: 271-89-6 | D48: =IFERROR(VLOOKUP(C48,RBCs!$B$5:$C$265,2,FALSE),"NoRBC") -> NoRBC
B49: Benzoic trichloride (Benzotrichloride) | C49: 98-07-7 | D49: =IFERROR(VLOOKUP(C49,RBCs!$B$5:$C$265,2,FALSE),"NoRBC") -> NoRBC
B50: Benzoyl chloride | C50: 98-88-4 | D50: =IFERROR(VLOOKUP(C50,RBCs!$B$5:$C$265,2,FALSE),"NoRBC") -> NoRBC
B51: Benzoyl peroxide | C51: 94-36-0 | D51: =IFERROR(VLOOKUP(C51,RBCs!$B$5:$C$265,2,FALSE),"NoRBC") -> NoRBC
B52: Benzyl chloride | C52: 100-44-7
B53: Benzyl Violet 4B | C53: 1694-09-3 | D53: =IFERROR(VLOOKUP(C53,RBCs!$B$5:$C$265,2,FALSE),"NoRBC") -> NoRBC
B54: Beryllium and compounds | C54: 7440-41-7
B55: Beryllium Oxide | C55: 1304-56-9 | D55: =IFERROR(VLOOKUP(C55,RBCs!$B$5:$C$265,2,FALSE),"NoRBC") -> NoRBC
B56: Beryllium Sulfate | C56: 13510-49-1 | D56: =IFERROR(VLOOKUP(C56,RBCs!$B$5:$C$265,2,FALSE),"NoRBC") -> NoRBC
B57: Biphenyl | C57: 92-52-4 | D57: =IFERROR(VLOOKUP(C57,RBCs!$B$5:$C$265,2,FALSE),"NoRBC") -> NoRBC
B58: Bis(2-chloroethyl) ether (DCEE) | C58: 111-44-4
B59: Bis(chloromethyl) ether | C59: 542-88-1
B60: Bis(2-ethylhexyl) adipate | C60: 103-23-1 | D60: =IFERROR(VLOOKUP(C60,RBCs!$B$5:$C$265,2,FALSE),"NoRBC") -> NoRBC
B61: Bis(2-ethylhexyl) phthalate (DEHP) | C61: 117-81-7
B62: Bromine and compounds | C62: 7726-95-6 | D62: =IFERROR(VLOOKUP(C62,RBCs!$B$5:$C$265,2,FALSE),"NoRBC") -> NoRBC
B63: Bromine pentafluoride | C63: 7789-30-2 | D63: =IFERROR(VLOOKUP(C63,RBCs!$B$5:$C$265,2,FALSE),"NoRBC") -> NoRBC
B64: Bromodichloromethane | C64: 75-27-4 | D64: =IFERROR(VLOOKUP(C64,RBCs!$B$5:$C$265,2,FALSE),"NoRBC") -> NoRBC
B65: Bromoform | C65: 75-25-2
B66: Bromomethane (Methyl bromide) | C66: 74-83-9
B67: 1-Bromopropane (n-propyl bromide) | C67: 106-94-5
B68: Tris(2,3-dibromopropyl)phosphate | C68: 126-72-7 | D68: =IFERROR(VLOOKUP(C68,RBCs!$B$5:$C$265,2,FALSE),"NoRBC") -> NoRBC
B69: 1,3-Butadiene | C69: 106-99-0
B70: 2-Butanone (Methyl ethyl ketone) | C70: 78-93-3
B71: t-Butyl acetate | C71: 540-88-5 | D71: =IFERROR(VLOOKUP(C71,RBCs!$B$5:$C$265,2,FALSE),"NoRBC") -> NoRBC
B72: Butyl acrylate | C72: 141-32-2 | D72: =IFERROR(VLOOKUP(C72,RBCs!$B$5:$C$265,2,FALSE),"NoRBC") -> NoRBC
B73: n-Butyl alcohol | C73: 71-36-3 | D73: =IFERROR(VLOOKUP(C73,RBCs!$B$5:$C$265,2,FALSE),"NoRBC") -> NoRBC
B74: sec-Butyl alcohol | C74: 78-92-2
B75: tert-Butyl alcohol | C75: 75-65-0 | D75: =IFERROR(VLOOKUP(C75,RBCs!$B$5:$C$265,2,FALSE),"NoRBC") -> NoRBC
B76: Butyl benzyl phthalate | C76: 85-68-7 | D76: =IFERROR(VLOOKUP(C76,RBCs!$B$5:$C$265,2,FALSE),"NoRBC") -> NoRBC
B77: Butylated hydroxyanisole | C77: 25013-16-5 | D77: =IFERROR(VLOOKUP(C77,RBCs!$B$5:$C$265,2,FALSE),"NoRBC") -> NoRBC
B78: beta-Butyrolactone | C78: 3068-88-0 | D78: =IFERROR(VLOOKUP(C78,RBCs!$B$5:$C$265,2,FALSE),"NoRBC") -> NoRBC
B79: Cadmium and compounds | C79: 7440-43-9
B80: Calcium cyanamide | C80: 156-62-7 | D80: =IFERROR(VLOOKUP(C80,RBCs!$B$5:$C$265,2,FALSE),"NoRBC") -> NoRBC
B81: Caprolactam | C81: 105-60-2
B82: Captafol | C82: 2425-06-1 | D82: =IFERROR(VLOOKUP(C82,RBCs!$B$5:$C$265,2,FALSE),"NoRBC") -> NoRBC
B83: Captan | C83: 133-06-2 | D83: =IFERROR(VLOOKUP(C83,RBCs!$B$5:$C$265,2,FALSE),"NoRBC") -> NoRBC
B84: Carbon black extracts | C84: 89 | D84: =IFERROR(VLOOKUP(C84,RBCs!$B$5:$C$265,2,FALSE),"NoRBC") -> NoRBC
B85: Carbon disulfide | C85: 75-15-0
B86: Carbon tetrachloride | C86: 56-23-5
B87: Carbonyl sulfide | C87: 463-58-1
B88: Carrageenan (degraded) | C88: 9000-07-1 | D88: =IFERROR(VLOOKUP(C88,RBCs!$B$5:$C$265,2,FALSE),"NoRBC") -> NoRBC
B89: Catechol | C89: 120-80-9 | D89: =IFERROR(VLOOKUP(C89,RBCs!$B$5:$C$265,2,FALSE),"NoRBC") -> NoRBC
B90: Ceramic fibers | C90: 351 | D90: =IFERROR(VLOOKUP(C90,RBCs!$B$5:$C$265,2,FALSE),"NoRBC") -> NoRBC
B91: Chloramben | C91: 133-90-4 | D91: =IFERROR(VLOOKUP(C91,RBCs!$B$5:$C$265,2,FALSE),"NoRBC") -> NoRBC
B92: Chlorambucil | C92: 305-03-3 | D92: =IFERROR(VLOOKUP(C92,RBCs!$B$5:$C$265,2,FALSE),"NoRBC") -> NoRBC
B93: Chlordane | C93: 57-74-9
B94: Chlordecone | C94: 143-50-0 | D94: =IFERROR(VLOOKUP(C94,RBCs!$B$5:$C$265,2,FALSE),"NoRBC") -> NoRBC
B95: Chlorendic Acid | C95: 115-28-6 | D95: =IFERROR(VLOOKUP(C95,RBCs!$B$5:$C$265,2,FALSE),"NoRBC") -> NoRBC
B96: Chlorinated fluorocarbon (1,1,2-Trichloro-1,2,2-trifluoroethane, CFC-113) | C96: 76-13-1 | D96: =IFERROR(VLOOKUP(C96,RBCs!$B$5:$C$265,2,FALSE),"NoRBC") -> NoRBC
B97: Chlorinated paraffins | C97: 108171-26-2
B98: Chlorine | C98: 7782-50-5
B99: Chlorine dioxide | C99: 10049-04-4
B100: Chloroacetic acid | C100: 79-11-8 | D100: =IFERROR(VLOOKUP(C100,RBCs!$B$5:$C$265,2,FALSE),"NoRBC") -> NoRBC
B101: 2-Chloroacetophenone | C101: 532-27-4
B102: Chloroalkanes C10-13 (Chlorinated paraffins) | C102: 85535-84-8 | D102: =IFERROR(VLOOKUP(C102,RBCs!$B$5:$C$265,2,FALSE),"NoRBC") -> NoRBC
B103: p-Chloroaniline | C103: 106-47-8 | D103: =IFERROR(VLOOKUP(C103,RBCs!$B$5:$C$265,2,FALSE),"NoRBC") -> NoRBC
B104: Chlorobenzene | C104: 108-90-7
B105: Chlorobenzilate (Ethyl-4,4'-dichlorobenzilate) | C105: 510-15-6 | D105: =IFERROR(VLOOKUP(C105,RBCs!$B$5:$C$265,2,FALSE),"NoRBC") -> NoRBC
B106: 1-Chloro-1,1-difluoroethane | C106: 75-68-3
B107: Chlorodifluoromethane (Freon 22) | C107: 75-45-6
B108: Chloroethane (Ethyl chloride) | C108: 75-00-3
B109: Chloroform | C109: 67-66-3
B110: Chloromethane (Methyl chloride) | C110: 74-87-3
B111: Chloromethyl methyl ether (technical grade) | C111: 107-30-2 | D111: =IFERROR(VLOOKUP(C111,RBCs!$B$5:$C$265,2,FALSE),"NoRBC") -> NoRBC
B112: 3-Chloro-2-methyl-1-propene | C112: 563-47-3 | D112: =IFERROR(VLOOKUP(C112,RBCs!$B$5:$C$265,2,FALSE),"NoRBC") -> NoRBC
B113: 2-Chlorophenol | C113: 95-57-8 | D113: =IFERROR(VLOOKUP(C113,RBCs!$B$5:$C$265,2,FALSE),"NoRBC") -> NoRBC
B114: 4-Chloro-o-phenylenediamine | C114: 95-83-0
B115: Chloropicrin | C115: 76-06-2
B116: Chloroprene | C116: 126-99-8
B117: Chlorothalonil | C117: 1897-45-6 | D117: =IFERROR(VLOOKUP(C117,RBCs!$B$5:$C$265,2,FALSE),"NoRBC") -> NoRBC
B118: p-Chloro-o-toluidine | C118: 95-69-2
B119: Chlorozotocin | C119: 54749-90-5 | D119: =IFERROR(VLOOKUP(C119,RBCs!$B$5:$C$265,2,FALSE),"NoRBC") -> NoRBC
B120: Chromic(VI) Acid | C120: 7738-94-5
B121: Chromium VI, chromate and dichromate particulate | C121: 18540-29-9
B122: Chromium trioxide | C122: 1333-82-0 | D122: =IFERROR(VLOOKUP(C122,RBCs!$B$5:$C$265,2,FALSE),"NoRBC") -> NoRBC
B123: C.I. Basic Red 9 Monohydrochloride | C123: 569-61-9 | D123: =IFERROR(VLOOKUP(C123,RBCs!$B$5:$C$265,2,FALSE),"NoRBC") -> NoRBC
B124: Cinnamyl anthranilate | C124: 87-29-6 | D124: =IFERROR(VLOOKUP(C124,RBCs!$B$5:$C$265,2,FALSE),"NoRBC") -> NoRBC
B125: Cobalt and compounds | C125: 7440-48-4
B126: Coke Oven Emissions | C126: 148
B127: Copper and compounds | C127: 7440-50-8
B128: Creosotes | C128: 150 | D128: =IFERROR(VLOOKUP(C128,RBCs!$B$5:$C$265,2,FALSE),"NoRBC") -> NoRBC
B129: p-Cresidine | C129: 120-71-8
B130: Cresols (mixture), including m-cresol, o-cresol, p-cresol | C130: 1319-77-3
B131: m-Cresol | C131: 108-39-4 | D131: =IFERROR(VLOOKUP(C131,RBCs!$B$5:$C$265,2,FALSE),"NoRBC") -> NoRBC
B132: o-Cresol | C132: 95-48-7 | D132: =IFERROR(VLOOKUP(C132,RBCs!$B$5:$C$265,2,FALSE),"NoRBC") -> NoRBC
B133: p-Cresol | C133: 106-44-5 | D133: =IFERROR(VLOOKUP(C133,RBCs!$B$5:$C$265,2,FALSE),"NoRBC") -> NoRBC
B134: Crotonaldehyde | C134: 4170-30-3 | D134: =IFERROR(VLOOKUP(C134,RBCs!$B$5:$C$265,2,FALSE),"NoRBC") -> NoRBC
B135: Cumene hydroperoxide | C135: 80-15-9 | D135: =IFERROR(VLOOKUP(C135,RBCs!$B$5:$C$265,2,FALSE),"NoRBC") -> NoRBC
B136: Cupferron | C136: 135-20-6
B137: Cyanide compounds | C137: 57-12-5 | D137: =IFERROR(VLOOKUP(C137,RBCs!$B$5:$C$265,2,FALSE),"NoRBC") -> NoRBC
B138: Cyanide, hydrogen | C138: 74-90-8
B139: Cyclohexane | C139: 110-82-7
B140: Cyclohexanol | C140: 108-93-0 | D140: =IFERROR(VLOOKUP(C140,RBCs!$B$5:$C$265,2,FALSE),"NoRBC") -> NoRBC
B141: Cycloheximide | C141: 66-81-9 | D141: =IFERROR(VLOOKUP(C141,RBCs!$B$5:$C$265,2,FALSE),"NoRBC") -> NoRBC
B142: Cyclophosphamide (anhydrous) | C142: 50-18-0 | D142: =IFERROR(VLOOKUP(C142,RBCs!$B$5:$C$265,2,FALSE),"NoRBC") -> NoRBC
B143: Cyclophosphamide (hydrated) | C143: 6055-19-2 | D143: =IFERROR(VLOOKUP(C143,RBCs!$B$5:$C$265,2,FALSE),"NoRBC") -> NoRBC
B144: D & C Red No. 9 | C144: 5160-02-1 | D144: =IFERROR(VLOOKUP(C144,RBCs!$B$5:$C$265,2,FALSE),"NoRBC") -> NoRBC
B145: Dacarbazine | C145: 4342-03-4 | D145: =IFERROR(VLOOKUP(C145,RBCs!$B$5:$C$265,2,FALSE),"NoRBC") -> NoRBC
B146: Dantron | C146: 117-10-2 | D146: =IFERROR(VLOOKUP(C146,RBCs!$B$5:$C$265,2,FALSE),"NoRBC") -> NoRBC
B147: 4,4'-DDD (4,4'-dichlorodiphenyldichloroethane) | C147: 72-54-8 | D147: =IFERROR(VLOOKUP(C147,RBCs!$B$5:$C$265,2,FALSE),"NoRBC") -> NoRBC
B148: 2,4'-DDD (2,4'-dichlorodiphenyldichloroethane) | C148: 53-19-0 | D148: =IFERROR(VLOOKUP(C148,RBCs!$B$5:$C$265,2,FALSE),"NoRBC") -> NoRBC
B149: DDE (1-chloro-4-[1-(4-chlorophenyl)ethyl]benzene) | C149: 3547-04-4 | D149: =IFERROR(VLOOKUP(C149,RBCs!$B$5:$C$265,2,FALSE),"NoRBC") -> NoRBC
B150: 2,4'-DDE (2,4'-dichlorodiphenyldichloroethene) | C150: 3424-82-6 | D150: =IFERROR(VLOOKUP(C150,RBCs!$B$5:$C$265,2,FALSE),"NoRBC") -> NoRBC
B151: 4,4'-DDE (4,4'-dichlorodiphenyldichloroethene) | C151: 72-55-9 | D151: =IFERROR(VLOOKUP(C151,RBCs!$B$5:$C$265,2,FALSE),"NoRBC") -> NoRBC
B152: 2,4'-DDT (2,4'-dichlorodiphenyltrichloroethane) | C152: 789-02-6 | D152: =IFERROR(VLOOKUP(C152,RBCs!$B$5:$C$265,2,FALSE),"NoRBC") -> NoRBC
B153: DDT | C153: 50-29-3
B154: 2,4-Diaminoanisole | C154: 615-05-4
B155: 2,4-Diaminoanisole sulfate | C155: 39156-41-7 | D155: =IFERROR(VLOOKUP(C155,RBCs!$B$5:$C$265,2,FALSE),"NoRBC") -> NoRBC
B156: 4,4'-Diaminodiphenyl ether | C156: 101-80-4 | D156: =IFERROR(VLOOKUP(C156,RBCs!$B$5:$C$265,2,FALSE),"NoRBC") -> NoRBC
B157: 2,4-Diaminotoluene (2,4-Toluene diamine) | C157: 95-80-7
B158: Diazomethane | C158: 334-88-3 | D158: =IFERROR(VLOOKUP(C158,RBCs!$B$5:$C$265,2,FALSE),"NoRBC") -> NoRBC
B159: Diazinon | C159: 333-41-5
B160: Dibenzofuran | C160: 132-64-9 | D160: =IFERROR(VLOOKUP(C160,RBCs!$B$5:$C$265,2,FALSE),"NoRBC") -> NoRBC
B161: Dibromochloromethane | C161: 124-48-1 | D161: =IFERROR(VLOOKUP(C161,RBCs!$B$5:$C$265,2,FALSE),"NoRBC") -> NoRBC
B162: 1,2-Dibromo-3-chloropropane (DBCP) | C162: 96-12-8
B163: 2,3-Dibromo-1-propanol | C163: 96-13-9 | D163: =IFERROR(VLOOKUP(C163,RBCs!$B$5:$C$265,2,FALSE),"NoRBC") -> NoRBC
B164: Dibutyl phthalate | C164: 84-74-2 | D164: =IFERROR(VLOOKUP(C164,RBCs!$B$5:$C$265,2,FALSE),"NoRBC") -> NoRBC
B165: 1,2-Dichlorobenzene | C165: 95-50-1 | D165: =IFERROR(VLOOKUP(C165,RBCs!$B$5:$C$265,2,FALSE),"NoRBC") -> NoRBC
B166: 1,3-Dichlorobenzene | C166: 541-73-1 | D166: =IFERROR(VLOOKUP(C166,RBCs!$B$5:$C$265,2,FALSE),"NoRBC") -> NoRBC
B167: p-Dichlorobenzene (1,4-Dichlorobenzene) | C167: 106-46-7
B168: 3,3'-Dichlorobenzidine | C168: 91-94-1
B169: Dichlorodifluoromethane (Freon 12) | C169: 75-71-8 | D169: =IFERROR(VLOOKUP(C169,RBCs!$B$5:$C$265,2,FALSE),"NoRBC") -> NoRBC
B170: Dichlorofluoromethane (Freon 21) | C170: 75-43-4 | D170: =IFERROR(VLOOKUP(C170,RBCs!$B$5:$C$265,2,FALSE),"NoRBC") -> NoRBC
B171: 1,1-Dichloroethane (Ethylidene dichloride) | C171: 75-34-3
B172: trans-1,2-dichloroethene | C172: 156-60-5
B173: Dichloromethane (Methylene chloride) | C173: 75-09-2
B174: 2,4-Dichlorophenol | C174: 120-83-2 | D174: =IFERROR(VLOOKUP(C174,RBCs!$B$5:$C$265,2,FALSE),"NoRBC") -> NoRBC
B175: Dichlorophenoxyacetic acid, salts and esters (2,4-D) | C175: 94-75-7 | D175: =IFERROR(VLOOKUP(C175,RBCs!$B$5:$C$265,2,FALSE),"NoRBC") -> NoRBC
B176: 1,2-Dichloropropane (Propylene dichloride) | C176: 78-87-5
B177: 1,3-Dichloropropene | C177: 542-75-6
B178: Dichlorovos (DDVP) | C178: 62-73-7
B179: Dicofol | C179: 115-32-2 | D179: =IFERROR(VLOOKUP(C179,RBCs!$B$5:$C$265,2,FALSE),"NoRBC") -> NoRBC
B180: Di-cyclohexyl phthalate (DCHP) | C180: 84-61-7 | D180: =IFERROR(VLOOKUP(C180,RBCs!$B$5:$C$265,2,FALSE),"NoRBC") -> NoRBC
B181: Dieldrin | C181: 60-57-1
B182: Diesel Particulate Matter | C182: 200
B183: Diethanolamine | C183: 111-42-2
B184: Diethylene glycol | C184: 111-46-6 | D184: =IFERROR(VLOOKUP(C184,RBCs!$B$5:$C$265,2,FALSE),"NoRBC") -> NoRBC
B185: Diethylene glycol dimethyl ether | C185: 111-96-6 | D185: =IFERROR(VLOOKUP(C185,RBCs!$B$5:$C$265,2,FALSE),"NoRBC") -> NoRBC
B186: Diethylene glycol monobutyl ether | C186: 112-34-5
B187: Diethylene glycol monoethyl ether | C187: 111-90-0
B188: Diethylene glycol monomethyl ether | C188: 111-77-3 | D188: =IFERROR(VLOOKUP(C188,RBCs!$B$5:$C$265,2,FALSE),"NoRBC") -> NoRBC
B189: Diethylphthalate | C189: 84-66-2 | D189: =IFERROR(VLOOKUP(C189,RBCs!$B$5:$C$265,2,FALSE),"NoRBC") -> NoRBC
B190: Diethyl sulfate | C190: 64-67-5 | D190: =IFERROR(VLOOKUP(C190,RBCs!$B$5:$C$265,2,FALSE),"NoRBC") -> NoRBC
B191: Diethyltoluamide, N,N- (DEET) | C191: 134-62-3 | D191: =IFERROR(VLOOKUP(C191,RBCs!$B$5:$C$265,2,FALSE),"NoRBC") -> NoRBC
B192: 1,1-Difluoroethane | C192: 75-37-6
B193: Diglycidyl resorcinol ether | C193: 101-90-6 | D193: =IFERROR(VLOOKUP(C193,RBCs!$B$5:$C$265,2,FALSE),"NoRBC") -> NoRBC
B194: Dihydrosafrole | C194: 94-58-6 | D194: =IFERROR(VLOOKUP(C194,RBCs!$B$5:$C$265,2,FALSE),"NoRBC") -> NoRBC
B195: 3,3'-Dimethoxybenzidine | C195: 119-90-4 | D195: =IFERROR(VLOOKUP(C195,RBCs!$B$5:$C$265,2,FALSE),"NoRBC") -> NoRBC
B196: 4-Dimethylaminoazobenzene | C196: 60-11-7
B197: N,N-Dimethylaniline | C197: 121-69-7 | D197: =IFERROR(VLOOKUP(C197,RBCs!$B$5:$C$265,2,FALSE),"NoRBC") -> NoRBC
B198: 3,3'-Dimethylbenzidine (o-Tolidine) | C198: 119-93-7 | D198: =IFERROR(VLOOKUP(C198,RBCs!$B$5:$C$265,2,FALSE),"NoRBC") -> NoRBC
B199: Dimethyl carbamoyl chloride | C199: 79-44-7 | D199: =IFERROR(VLOOKUP(C199,RBCs!$B$5:$C$265,2,FALSE),"NoRBC") -> NoRBC
B200: Dimethyl formamide | C200: 68-12-2
B201: 1,1-Dimethylhydrazine | C201: 57-14-7
... 409 more rows

Sheet Dispersion Factors
B1: OAR 340-245-8050 Table 5
B2: Level 1 Risk Assessment Tool
B3: Dispersion Factors
B4: Table 5A: Stack Emission Dispersion Factors for Annual Exposure (µg/m3 / pounds/year)
B5: Stack | G5: Exposure Location Distance (meters)
B6: Ht (m) | C6: 10 | D6: 20 | E6: 30 | F6: 40 | G6: 50 | H6: 60 | I6: 70 | J6: 80 | K6: 90 | L6: 100 | M6: 110 | N6: 120 | O6: 130 | P6: 140 | Q6: 150 | R6: 160 | S6: 170 | T6: 180 | U6: 190 | V6: 200 | W6: 250 | X6: 300 | Y6: 350 | Z6: 400 | AA6: 450 | AB6: 500 | AC6: 600 | AD6: 700 | AE6: 800 | AF6: 1000
B7: 5 | C7: 0.011 | D7: 0.006 | E7: 0.0052 | F7: 0.0041 | G7: 0.0033 | H7: 0.0026 | I7: 0.0021 | J7: 0.0017 | K7: 0.0014 | L7: 0.0012 | M7: 0.001 | N7: 0.00088 | O7: 0.00076 | P7: 0.00066 | Q7: 0.00058 | R7: 0.00051 | S7: 0.00046 | T7: 0.00041 | U7: 0.00037 | V7: 0.00034 | W7: 0.00023 | X7: 0.00017 | Y7: 0.00013 | Z7: 0.0001 | AA7: 8.4e-05 | AB7: 7.1e-05 | AC7: 5.2e-05 | AD7: 4e-05 | AE7: 3.2e-05 | AF7: 2.2e-05
B8: 10 | C8: 0.0095 | D8: 0.0046 | E8: 0.0027 | F8: 0.0016 | G8: 0.0014 | H8: 0.0012 | I8: 0.0011 | J8: 0.00094 | K8: 0.00084 | L8: 0.00075 | M8: 0.00068 | N8: 0.00062 | O8: 0.00057 | P8: 0.00052 | Q8: 0.00048 | R8: 0.00044 | S8: 0.00041 | T8: 0.00038 | U8: 0.00035 | V8: 0.00033 | W8: 0.00023 | X8: 0.00017 | Y8: 0.00013 | Z8: 9.8e-05 | AA8: 7.8e-05 | AB8: 6.4e-05 | AC8: 4.7e-05 | AD8: 3.6e-05 | AE8: 2.9e-05 | AF8: 2.1e-05
B9: 15 | C9: 0.0043 | D9: 0.003 | E9: 0.0018 | F9: 0.0013 | G9: 0.00075 | H9: 0.00061 | I9: 0.00054 | J9: 0.00049 | K9: 0.00044 | L9: 0.0004 | M9: 0.00037 | N9: 0.00034 | O9: 0.00031 | P9: 0.00029 | Q9: 0.00027 | R9: 0.00025 | S9: 0.00024 | T9: 0.00023 | U9: 0.00021 | V9: 0.0002 | W9: 0.00016 | X9: 0.00013 | Y9: 0.0001 | Z9: 8.3e-05 | AA9: 6.9e-05 | AB9: 5.7e-05 | AC9: 4.1e-05 | AD9: 3.2e-05 | AE9: 2.5e-05 | AF9: 1.8e-05
B10: 20 | C10: 0.0023 | D10: 0.0018 | E10: 0.0013 | F10: 0.00088 | G10: 0.00072 | H10: 0.00054 | I10: 0.00035 | J10: 0.00031 | K10: 0.00028 | L10: 0.00026 | M10: 0.00023 | N10: 0.00022 | O10: 0.0002 | P10: 0.00019 | Q10: 0.00017 | R10: 0.00016 | S10: 0.00015 | T10: 0.00014 | U10: 0.00014 | V10: 0.00013 | W10: 0.0001 | X10: 8.6e-05 | Y10: 7.3e-05 | Z10: 6.2e-05 | AA10: 5.3e-05 | AB10: 4.6e-05 | AC10: 3.5e-05 | AD10: 2.7e-05 | AE10: 2.1e-05 | AF10: 1.5e-05
B11: 25 | C11: 0.0013 | D11: 0.0011 | E11: 0.00091 | F11: 0.00066 | G11: 0.0005 | H11: 0.00041 | I11: 0.00035 | J11: 0.00025 | K11: 0.00019 | L11: 0.00018 | M11: 0.00016 | N11: 0.00015 | O11: 0.00014 | P11: 0.00013 | Q11: 0.00012 | R11: 0.00012 | S11: 0.00011 | T11: 0.0001 | U11: 9.6e-05 | V11: 9.1e-05 | W11: 7.2e-05 | X11: 5.9e-05 | Y11: 5.1e-05 | Z11: 4.4e-05 | AA11: 3.9e-05 | AB11: 3.4e-05 | AC11: 2.7e-05 | AD11: 2.2e-05 | AE11: 1.8e-05 | AF11: 1.3e-05
B12: 30 | C12: 0.00082 | D12: 0.00073 | E12: 0.00062 | F12: 0.0005 | G12: 0.00037 | H12: 0.0003 | I12: 0.00026 | J12: 0.00023 | K12: 0.00019 | L12: 0.00013 | M12: 0.00012 | N12: 0.00011 | O12: 0.0001 | P12: 9.6e-05 | Q12: 9e-05 | R12: 8.5e-05 | S12: 8e-05 | T12: 7.5e-05 | U12: 7.1e-05 | V12: 6.8e-05 | W12: 5.3e-05 | X12: 4.4e-05 | Y12: 3.7e-05 | Z12: 3.2e-05 | AA12: 2.8e-05 | AB12: 2.5e-05 | AC12: 2.1e-05 | AD12: 1.7e-05 | AE12: 1.4e-05 | AF12: 1e-05
B13: 35 | C13: 0.00053 | D13: 0.00049 | E13: 0.00043 | F13: 0.00037 | G13: 0.0003 | H13: 0.00023 | I13: 0.00019 | J13: 0.00017 | K13: 0.00015 | L13: 0.00013 | M13: 0.00011 | N13: 8.1e-05 | O13: 7.5e-05 | P13: 7.1e-05 | Q13: 6.8e-05 | R13: 6.4e-05 | S13: 6.1e-05 | T13: 5.8e-05 | U13: 5.5e-05 | V13: 5.2e-05 | W13: 4.2e-05 | X13: 3.4e-05 | Y13: 2.9e-05 | Z13: 2.5e-05 | AA13: 2.2e-05 | AB13: 1.9e-05 | AC13: 1.6e-05 | AD13: 1.4e-05 | AE13: 1.1e-05 | AF13: 8.443530838e-06
B14: 40 | C14: 0.00037 | D14: 0.00034 | E14: 0.00031 | F14: 0.00027 | G14: 0.00023 | H14: 0.00019 | I14: 0.00015 | J14: 0.00013 | K14: 0.00012 | L14: 0.00011 | M14: 9.6e-05 | N14: 8.1e-05 | O14: 6.4e-05 | P14: 5.4e-05 | Q14: 5.1e-05 | R14: 4.9e-05 | S14: 4.7e-05 | T14: 4.5e-05 | U14: 4.3e-05 | V14: 4.1e-05 | W14: 3.3e-05 | X14: 2.8e-05 | Y14: 2.3e-05 | Z14: 2e-05 | AA14: 1.8e-05 | AB14: 1.6e-05 | AC14: 1.3e-05 | AD14: 1.1e-05 | AE14: 9.330695726e-06 | AF14: 7.046386192e-06
B15: 45 | C15: 0.00027 | D15: 0.00025 | E15: 0.00023 | F15: 0.00021 | G15: 0.00018 | H15: 0.00016 | I15: 0.00013 | J15: 0.00011 | K15: 9.5e-05 | L15: 8.5e-05 | M15: 7.8e-05 | N15: 7.2e-05 | O15: 6.3e-05 | P15: 5.3e-05 | Q15: 4.2e-05 | R15: 3.8e-05 | S15: 3.7e-05 | T15: 3.6e-05 | U15: 3.4e-05 | V15: 3.3e-05 | W15: 2.7e-05 | X15: 2.3e-05 | Y15: 1.9e-05 | Z15: 1.7e-05 | AA15: 1.5e-05 | AB15: 1.3e-05 | AC15: 1.1e-05 | AD15: 8.991429275e-06 | AE15: 7.803942094e-06 | AF15: 5.978644106e-06
B16: 50 | C16: 0.00019 | D16: 0.00018 | E16: 0.00017 | F16: 0.00016 | G16: 0.00014 | H16: 0.00013 | I16: 0.00011 | J16: 9e-05 | K16: 7.7e-05 | L16: 6.8e-05 | M16: 6.2e-05 | N16: 5.7e-05 | O16: 5.3e-05 | P16: 4.8e-05 | Q16: 4.2e-05 | R16: 3.5e-05 | S16: 2.9e-05 | T16: 2.7e-05 | U16: 2.6e-05 | V16: 2.6e-05 | W16: 2.2e-05 | X16: 1.9e-05 | Y16: 1.6e-05 | Z16: 1.4e-05 | AA16: 1.2e-05 | AB16: 1.1e-05 | AC16: 8.906363951e-06 | AD16: 7.492317578e-06 | AE16: 6.487869405e-06 | AF16: 5.077207772e-06
B18: Table 5B: Stack Emission Dispersion Factors for 24 hour Exposure (µg/m3 / pounds/day)
B19: Stack | G19: Exposure Location Distance (meters)
B20: Ht (m) | C20: 10 | D20: 20 | E20: 30 | F20: 40 | G20: 50 | H20: 60 | I20: 70 | J20: 80 | K20: 90 | L20: 100 | M20: 110 | N20: 120 | O20: 130 | P20: 140 | Q20: 150 | R20: 160 | S20: 170 | T20: 180 | U20: 190 | V20: 200 | W20: 250 | X20: 300 | Y20: 350 | Z20: 400 | AA20: 450 | AB20: 500 | AC20: 600 | AD20: 700 | AE20: 800 | AF20: 1000
B21: 5 | C21: 27 | D21: 13 | E21: 12 | F21: 9.7 | G21: 8.3 | H21: 7.1 | I21: 6.1 | J21: 5.2 | K21: 4.4 | L21: 3.8 | M21: 3.2 | N21: 2.7 | O21: 2.4 | P21: 2.1 | Q21: 1.8 | R21: 1.6 | S21: 1.4 | T21: 1.3 | U21: 1.2 | V21: 1.1 | W21: 0.72 | X21: 0.55 | Y21: 0.44 | Z21: 0.36 | AA21: 0.3 | AB21: 0.26 | AC21: 0.2 | AD21: 0.16 | AE21: 0.13 | AF21: 0.092
B22: 10 | C22: 9.8 | D22: 8.8 | E22: 6.5 | F22: 4.1 | G22: 3.8 | H22: 3.4 | I22: 3.1 | J22: 2.8 | K22: 2.6 | L22: 2.4 | M22: 2.2 | N22: 2.1 | O22: 2 | P22: 1.8 | Q22: 1.7 | R22: 1.6 | S22: 1.5 | T22: 1.4 | U22: 1.3 | V22: 1.3 | W22: 0.91 | X22: 0.67 | Y22: 0.5 | Z22: 0.38 | AA22: 0.3 | AB22: 0.25 | AC22: 0.18 | AD22: 0.14 | AE22: 0.12 | AF22: 0.088
B23: 15 | C23: 3.3 | D23: 3.7 | E23: 3.4 | F23: 3 | G23: 1.8 | H23: 1.6 | I23: 1.6 | J23: 1.5 | K23: 1.4 | L23: 1.3 | M23: 1.2 | N23: 1.1 | O23: 1.1 | P23: 1 | Q23: 0.95 | R23: 0.91 | S23: 0.87 | T23: 0.83 | U23: 0.8 | V23: 0.77 | W23: 0.64 | X23: 0.53 | Y23: 0.43 | Z23: 0.36 | AA23: 0.3 | AB23: 0.25 | AC23: 0.18 | AD23: 0.13 | AE23: 0.1 | AF23: 0.075
B24: 20 | C24: 1.6 | D24: 1.9 | E24: 1.8 | F24: 1.7 | G24: 1.6 | H24: 1.3 | I24: 0.91 | J24: 0.86 | K24: 0.82 | L24: 0.77 | M24: 0.73 | N24: 0.69 | O24: 0.65 | P24: 0.62 | Q24: 0.59 | R24: 0.56 | S24: 0.54 | T24: 0.52 | U24: 0.49 | V24: 0.48 | W24: 0.4 | X24: 0.35 | Y24: 0.31 | Z24: 0.27 | AA24: 0.23 | AB24: 0.2 | AC24: 0.16 | AD24: 0.12 | AE24: 0.096 | AF24: 0.064
B25: 25 | C25: 0.83 | D25: 0.99 | E25: 1.1 | F25: 1 | G25: 0.97 | H25: 0.93 | I25: 0.85 | J25: 0.64 | K25: 0.52 | L25: 0.5 | M25: 0.48 | N25: 0.46 | O25: 0.44 | P25: 0.42 | Q25: 0.4 | R25: 0.38 | S25: 0.36 | T25: 0.35 | U25: 0.34 | V25: 0.32 | W25: 0.27 | X25: 0.23 | Y25: 0.21 | Z25: 0.19 | AA25: 0.17 | AB25: 0.15 | AC25: 0.12 | AD25: 0.1 | AE25: 0.082 | AF25: 0.057
B26: 30 | C26: 0.49 | D26: 0.57 | E26: 0.64 | F26: 0.65 | G26: 0.62 | H26: 0.59 | I26: 0.57 | J26: 0.55 | K26: 0.49 | L26: 0.34 | M26: 0.32 | N26: 0.31 | O26: 0.3 | P26: 0.29 | Q26: 0.28 | R26: 0.27 | S26: 0.26 | T26: 0.25 | U26: 0.24 | V26: 0.23 | W26: 0.19 | X26: 0.17 | Y26: 0.15 | Z26: 0.13 | AA26: 0.12 | AB26: 0.11 | AC26: 0.095 | AD26: 0.078 | AE26: 0.066 | AF26: 0.048
B27: 35 | C27: 0.31 | D27: 0.35 | E27: 0.4 | F27: 0.42 | G27: 0.42 | H27: 0.41 | I27: 0.39 | J27: 0.38 | K27: 0.37 | L27: 0.34 | M27: 0.29 | N27: 0.22 | O27: 0.21 | P27: 0.21 | Q27: 0.2 | R27: 0.2 | S27: 0.19 | T27: 0.18 | U27: 0.18 | V27: 0.17 | W27: 0.15 | X27: 0.13 | Y27: 0.11 | Z27: 0.099 | AA27: 0.09 | AB27: 0.083 | AC27: 0.072 | AD27: 0.062 | AE27: 0.053 | AF27: 0.04
B28: 40 | C28: 0.21 | D28: 0.24 | E28: 0.27 | F28: 0.29 | G28: 0.3 | H28: 0.29 | I28: 0.28 | J28: 0.28 | K28: 0.27 | L28: 0.26 | M28: 0.25 | N28: 0.22 | O28: 0.17 | P28: 0.15 | Q28: 0.15 | R28: 0.15 | S28: 0.14 | T28: 0.14 | U28: 0.14 | V28: 0.13 | W28: 0.11 | X28: 0.1 | Y28: 0.088 | Z28: 0.078 | AA28: 0.07 | AB28: 0.064 | AC28: 0.056 | AD28: 0.049 | AE28: 0.044 | AF28: 0.033
B29: 45 | C29: 0.15 | D29: 0.17 | E29: 0.19 | F29: 0.21 | G29: 0.22 | H29: 0.22 | I29: 0.21 | J29: 0.21 | K29: 0.2 | L29: 0.2 | M29: 0.19 | N29: 0.19 | O29: 0.17 | P29: 0.16 | Q29: 0.12 | R29: 0.11 | S29: 0.11 | T29: 0.11 | U29: 0.11 | V29: 0.1 | W29: 0.092 | X29: 0.081 | Y29: 0.072 | Z29: 0.065 | AA29: 0.058 | AB29: 0.053 | AC29: 0.045 | AD29: 0.04 | AE29: 0.036 | AF29: 0.028
B30: 50 | C30: 0.11 | D30: 0.12 | E30: 0.14 | F30: 0.15 | G30: 0.16 | H30: 0.16 | I30: 0.16 | J30: 0.16 | K30: 0.16 | L30: 0.15 | M30: 0.15 | N30: 0.14 | O30: 0.14 | P30: 0.13 | Q30: 0.12 | R30: 0.1 | S30: 0.082 | T30: 0.081 | U30: 0.08 | V30: 0.079 | W30: 0.072 | X30: 0.065 | Y30: 0.059 | Z30: 0.053 | AA30: 0.048 | AB30: 0.044 | AC30: 0.037 | AD30: 0.032 | AE30: 0.029 | AF30: 0.024
B32: Table 5C: Fugitive Emission Dispersion Factors for Annual Exposure (µg/m3 / pounds/year)
B33: Building Area | C33: Building | H33: Exposure Location Distance (meters)
B34: (1,000 ft2) | C34: Height (ft) | D34: 10 | E34: 20 | F34: 30 | G34: 40 | H34: 50 | I34: 60 | J34: 70 | K34: 80 | L34: 90 | M34: 100 | N34: 110 | O34: 120 | P34: 130 | Q34: 140 | R34: 150 | S34: 160 | T34: 170 | U34: 180 | V34: 190 | W34: 200 | X34: 250 | Y34: 300 | Z34: 350 | AA34: 400 | AB34: 450 | AC34: 500 | AD34: 600 | AE34: 700 | AF34: 800 | AG34: 1000
A35: =B35&"_"&C35 -> ≤3_≤20 | B35: ≤3 | C35: ≤20 | D35: 0.011 | E35: 0.006 | F35: 0.0052 | G35: 0.0041 | H35: 0.0045 | I35: 0.0033 | J35: 0.0026 | K35: 0.002 | L35: 0.0017 | M35: 0.0014 | N35: 0.0012 | O35: 0.001 | P35: 0.00089 | Q35: 0.00078 | R35: 0.00069 | S35: 0.00062 | T35: 0.00056 | U35: 0.0005 | V35: 0.00046 | W35: 0.00042 | X35: 0.00029 | Y35: 0.00021 | Z35: 0.00016 | AA35: 0.00013 | AB35: 0.0001 | AC35: 8.7e-05 | AD35: 6.4e-05 | AE35: 4.9e-05 | AF35: 3.9e-05 | AG35: 2.7e-05
A36: =B36&"_"&C36 -> >3 to 6_≤20 | B36: >3 to 6 | C36: ≤20 | D36: 0.0095 | E36: 0.0046 | F36: 0.0027 | G36: 0.0016 | H36: 0.0044 | I36: 0.0032 | J36: 0.0025 | K36: 0.002 | L36: 0.0016 | M36: 0.0014 | N36: 0.0012 | O36: 0.001 | P36: 0.00088 | Q36: 0.00077 | R36: 0.00069 | S36: 0.00061 | T36: 0.00055 | U36: 0.0005 | V36: 0.00046 | W36: 0.00042 | X36: 0.00028 | Y36: 0.00021 | Z36: 0.00016 | AA36: 0.00013 | AB36: 0.0001 | AC36: 8.7e-05 | AD36: 6.4e-05 | AE36: 4.9e-05 | AF36: 3.9e-05 | AG36: 2.7e-05
A37: >3 to 6_>20 | B37: >3 to 6 | C37: >20 | D37: 0.0043 | E37: 0.003 | F37: 0.0018 | G37: 0.0013 | H37: 0.0041 | I37: 0.0031 | J37: 0.0024 | K37: 0.0019 | L37: 0.0016 | M37: 0.0013 | N37: 0.0011 | O37: 0.00098 | P37: 0.00086 | Q37: 0.00076 | R37: 0.00067 | S37: 0.0006 | T37: 0.00054 | U37: 0.00049 | V37: 0.00045 | W37: 0.00041 | X37: 0.00028 | Y37: 0.00021 | Z37: 0.00016 | AA37: 0.00013 | AB37: 0.0001 | AC37: 8.7e-05 | AD37: 6.4e-05 | AE37: 4.9e-05 | AF37: 3.9e-05 | AG37: 2.7e-05
A38: >6 to 10_≤20 | B38: >6 to 10 | C38: ≤20 | D38: 0.0023 | E38: 0.0018 | F38: 0.0013 | G38: 0.00088 | H38: 0.0044 | I38: 0.0033 | J38: 0.0025 | K38: 0.002 | L38: 0.0017 | M38: 0.0014 | N38: 0.0012 | O38: 0.001 | P38: 0.00088 | Q38: 0.00077 | R38: 0.00069 | S38: 0.00062 | T38: 0.00055 | U38: 0.0005 | V38: 0.00046 | W38: 0.00042 | X38: 0.00028 | Y38: 0.00021 | Z38: 0.00016 | AA38: 0.00013 | AB38: 0.0001 | AC38: 8.7e-05 | AD38: 6.4e-05 | AE38: 4.9e-05 | AF38: 3.9e-05 | AG38: 2.7e-05
A39: >6 to 10_>20 | B39: >6 to 10 | C39: >20 | D39: 0.0013 | E39: 0.0011 | F39: 0.00091 | G39: 0.00066 | H39: 0.0037 | I39: 0.0028 | J39: 0.0022 | K39: 0.0018 | L39: 0.0015 | M39: 0.0013 | N39: 0.0011 | O39: 0.00095 | P39: 0.00083 | Q39: 0.00074 | R39: 0.00066 | S39: 0.00059 | T39: 0.00053 | U39: 0.00048 | V39: 0.00044 | W39: 0.00041 | X39: 0.00028 | Y39: 0.0002 | Z39: 0.00016 | AA39: 0.00013 | AB39: 0.0001 | AC39: 8.6e-05 | AD39: 6.4e-05 | AE39: 4.9e-05 | AF39: 3.9e-05 | AG39: 2.7e-05
A40: >10 to 15_≤20 | B40: >10 to 15 | C40: ≤20 | D40: 0.00082 | E40: 0.00073 | F40: 0.00062 | G40: 0.0005 | H40: 0.0044 | I40: 0.0033 | J40: 0.0025 | K40: 0.002 | L40: 0.0017 | M40: 0.0014 | N40: 0.0012 | O40: 0.001 | P40: 0.00088 | Q40: 0.00077 | R40: 0.00069 | S40: 0.00062 | T40: 0.00055 | U40: 0.0005 | V40: 0.00046 | W40: 0.00042 | X40: 0.00028 | Y40: 0.00021 | Z40: 0.00016 | AA40: 0.00013 | AB40: 0.0001 | AC40: 8.7e-05 | AD40: 6.4e-05 | AE40: 4.9e-05 | AF40: 3.9e-05 | AG40: 2.7e-05
A41: >10 to 15_>20 | B41: >10 to 15 | C41: >20 | D41: 0.00053 | E41: 0.00049 | F41: 0.00043 | G41: 0.00037 | H41: 0.0034 | I41: 0.0027 | J41: 0.0021 | K41: 0.0018 | L41: 0.0015 | M41: 0.0012 | N41: 0.0011 | O41: 0.00093 | P41: 0.00081 | Q41: 0.00072 | R41: 0.00064 | S41: 0.00058 | T41: 0.00052 | U41: 0.00048 | V41: 0.00044 | W41: 0.0004 | X41: 0.00028 | Y41: 0.0002 | Z41: 0.00016 | AA41: 0.00012 | AB41: 0.0001 | AC41: 8.6e-05 | AD41: 6.3e-05 | AE41: 4.9e-05 | AF41: 3.9e-05 | AG41: 2.7e-05
A42: >15 to 30_≤20 | B42: >15 to 30 | C42: ≤20 | D42: 0.00037 | E42: 0.00034 | F42: 0.00031 | G42: 0.00027 | H42: 0.0043 | I42: 0.0032 | J42: 0.0025 | K42: 0.002 | L42: 0.0016 | M42: 0.0014 | N42: 0.0012 | O42: 0.001 | P42: 0.00088 | Q42: 0.00077 | R42: 0.00069 | S42: 0.00061 | T42: 0.00055 | U42: 0.0005 | V42: 0.00046 | W42: 0.00042 | X42: 0.00028 | Y42: 0.00021 | Z42: 0.00016 | AA42: 0.00013 | AB42: 0.0001 | AC42: 8.7e-05 | AD42: 6.4e-05 | AE42: 4.9e-05 | AF42: 3.9e-05 | AG42: 2.7e-05
A43: >15 to 30_>20 | B43: >15 to 30 | C43: >20 | D43: 0.00027 | E43: 0.00025 | F43: 0.00023 | G43: 0.00021 | H43: 0.0034 | I43: 0.0027 | J43: 0.0021 | K43: 0.0018 | L43: 0.0015 | M43: 0.0012 | N43: 0.0011 | O43: 0.00093 | P43: 0.00082 | Q43: 0.00072 | R43: 0.00065 | S43: 0.00058 | T43: 0.00052 | U43: 0.00048 | V43: 0.00044 | W43: 0.0004 | X43: 0.00028 | Y43: 0.0002 | Z43: 0.00016 | AA43: 0.00013 | AB43: 0.0001 | AC43: 8.6e-05 | AD43: 6.3e-05 | AE43: 4.9e-05 | AF43: 3.9e-05 | AG43: 2.7e-05
A44: >30_>20 | B44: >30 | C44: >20 | D44: 0.00019 | E44: 0.00018 | F44: 0.00017 | G44: 0.00016 | H44: 0.0022 | I44: 0.0018 | J44: 0.0015 | K44: 0.0013 | L44: 0.0011 | M44: 0.00098 | N44: 0.00086 | O44: 0.00076 | P44: 0.00068 | Q44: 0.00061 | R44: 0.00055 | S44: 0.0005 | T44: 0.00046 | U44: 0.00042 | V44: 0.00039 | W44: 0.00036 | X44: 0.00025 | Y44: 0.00019 | Z44: 0.00015 | AA44: 0.00012 | AB44: 9.8e-05 | AC44: 8.3e-05 | AD44: 6.1e-05 | AE44: 4.8e-05 | AF44: 3.8e-05 | AG44: 2.7e-05
B46: Table 5D: Fugitive Emission Dispersion Factors for 24 hour Exposure (µg/m3 / pounds/day)
B47: Building Area | C47: Building | H47: Exposure Location Distance (meters)
B48: (1,000 ft2) | C48: Height (ft) | D48: 10 | E48: 20 | F48: 30 | G48: 40 | H48: 50 | I48: 60 | J48: 70 | K48: 80 | L48: 90 | M48: 100 | N48: 110 | O48: 120 | P48: 130 | Q48: 140 | R48: 150 | S48: 160 | T48: 170 | U48: 180 | V48: 190 | W48: 200 | X48: 250 | Y48: 300 | Z48: 350 | AA48: 400 | AB48: 450 | AC48: 500 | AD48: 600 | AE48: 700 | AF48: 800 | AG48: 1000
A49: =B49&"_"&C49 -> ≤3_≤20 | B49: ≤3 | C49: ≤20 | D49: 0.011 | E49: 0.006 | F49: 0.0052 | G49: 0.0041 | H49: 4.8 | I49: 3.7 | J49: 2.9 | K49: 2.4 | L49: 2 | M49: 1.7 | N49: 1.4 | O49: 1.2 | P49: 1.1 | Q49: 0.97 | R49: 0.87 | S49: 0.78 | T49: 0.71 | U49: 0.65 | V49: 0.59 | W49: 0.55 | X49: 0.38 | Y49: 0.29 | Z49: 0.22 | AA49: 0.18 | AB49: 0.15 | AC49: 0.13 | AD49: 0.095 | AE49: 0.074 | AF49: 0.06 | AG49: 0.043
A50: =B50&"_"&C50 -> >3 to 6_≤20 | B50: >3 to 6 | C50: ≤20 | D50: 0.0095 | E50: 0.0046 | F50: 0.0027 | G50: 0.0016 | H50: 4.1 | I50: 3.1 | J50: 2.5 | K50: 2 | L50: 1.7 | M50: 1.4 | N50: 1.2 | O50: 1.1 | P50: 0.95 | Q50: 0.84 | R50: 0.76 | S50: 0.68 | T50: 0.62 | U50: 0.57 | V50: 0.52 | W50: 0.48 | X50: 0.33 | Y50: 0.25 | Z50: 0.2 | AA50: 0.16 | AB50: 0.13 | AC50: 0.11 | AD50: 0.083 | AE50: 0.065 | AF50: 0.053 | AG50: 0.038
A51: >3 to 6_>20 | B51: >3 to 6 | C51: >20 | D51: 0.0043 | E51: 0.003 | F51: 0.0018 | G51: 0.0013 | H51: 3.5 | I51: 2.8 | J51: 2.2 | K51: 1.9 | L51: 1.6 | M51: 1.3 | N51: 1.2 | O51: 1 | P51: 0.9 | Q51: 0.8 | R51: 0.72 | S51: 0.65 | T51: 0.59 | U51: 0.54 | V51: 0.5 | W51: 0.46 | X51: 0.32 | Y51: 0.24 | Z51: 0.19 | AA51: 0.15 | AB51: 0.13 | AC51: 0.11 | AD51: 0.081 | AE51: 0.064 | AF51: 0.052 | AG51: 0.037
A52: >6 to 10_≤20 | B52: >6 to 10 | C52: ≤20 | D52: 0.0023 | E52: 0.0018 | F52: 0.0013 | G52: 0.00088 | H52: 4 | I52: 3.1 | J52: 2.5 | K52: 2 | L52: 1.7 | M52: 1.4 | N52: 1.2 | O52: 1.1 | P52: 0.94 | Q52: 0.84 | R52: 0.75 | S52: 0.68 | T52: 0.62 | U52: 0.56 | V52: 0.52 | W52: 0.48 | X52: 0.33 | Y52: 0.25 | Z52: 0.2 | AA52: 0.16 | AB52: 0.13 | AC52: 0.11 | AD52: 0.083 | AE52: 0.065 | AF52: 0.053 | AG52: 0.038
A53: >6 to 10_>20 | B53: >6 to 10 | C53: >20 | D53: 0.0013 | E53: 0.0011 | F53: 0.00091 | G53: 0.00066 | H53: 3.3 | I53: 2.6 | J53: 2.1 | K53: 1.8 | L53: 1.5 | M53: 1.3 | N53: 1.1 | O53: 0.97 | P53: 0.86 | Q53: 0.77 | R53: 0.69 | S53: 0.63 | T53: 0.57 | U53: 0.53 | V53: 0.48 | W53: 0.45 | X53: 0.31 | Y53: 0.24 | Z53: 0.19 | AA53: 0.15 | AB53: 0.12 | AC53: 0.11 | AD53: 0.08 | AE53: 0.063 | AF53: 0.051 | AG53: 0.036
A54: >10 to 15_≤20 | B54: >10 to 15 | C54: ≤20 | D54: 0.00082 | E54: 0.00073 | F54: 0.00062 | G54: 0.0005 | H54: 4 | I54: 3.1 | J54: 2.4 | K54: 2 | L54: 1.7 | M54: 1.4 | N54: 1.2 | O54: 1.1 | P54: 0.94 | Q54: 0.84 | R54: 0.75 | S54: 0.68 | T54: 0.62 | U54: 0.56 | V54: 0.52 | W54: 0.48 | X54: 0.33 | Y54: 0.25 | Z54: 0.19 | AA54: 0.16 | AB54: 0.13 | AC54: 0.11 | AD54: 0.083 | AE54: 0.065 | AF54: 0.053 | AG54: 0.038
A55: >10 to 15_>20 | B55: >10 to 15 | C55: >20 | D55: 0.00053 | E55: 0.00049 | F55: 0.00043 | G55: 0.00037 | H55: 2.9 | I55: 2.4 | J55: 2 | K55: 1.6 | L55: 1.4 | M55: 1.2 | N55: 1.1 | O55: 0.93 | P55: 0.83 | Q55: 0.74 | R55: 0.67 | S55: 0.61 | T55: 0.56 | U55: 0.51 | V55: 0.47 | W55: 0.43 | X55: 0.31 | Y55: 0.23 | Z55: 0.18 | AA55: 0.15 | AB55: 0.12 | AC55: 0.1 | AD55: 0.078 | AE55: 0.062 | AF55: 0.05 | AG55: 0.035
A56: >15 to 30_≤20 | B56: >15 to 30 | C56: ≤20 | D56: 0.00037 | E56: 0.00034 | F56: 0.00031 | G56: 0.00027 | H56: 3.7 | I56: 2.9 | J56: 2.3 | K56: 1.9 | L56: 1.6 | M56: 1.4 | N56: 1.2 | O56: 1 | P56: 0.92 | Q56: 0.82 | R56: 0.74 | S56: 0.67 | T56: 0.61 | U56: 0.55 | V56: 0.51 | W56: 0.47 | X56: 0.33 | Y56: 0.25 | Z56: 0.19 | AA56: 0.16 | AB56: 0.13 | AC56: 0.11 | AD56: 0.083 | AE56: 0.065 | AF56: 0.053 | AG56: 0.037
A57: >15 to 30_>20 | B57: >15 to 30 | C57: >20 | D57: 0.00027 | E57: 0.00025 | F57: 0.00023 | G57: 0.00021 | H57: 2.9 | I57: 2.3 | J57: 1.9 | K57: 1.6 | L57: 1.4 | M57: 1.2 | N57: 1 | O57: 0.92 | P57: 0.82 | Q57: 0.74 | R57: 0.67 | S57: 0.6 | T57: 0.55 | U57: 0.51 | V57: 0.47 | W57: 0.43 | X57: 0.31 | Y57: 0.23 | Z57: 0.18 | AA57: 0.15 | AB57: 0.12 | AC57: 0.1 | AD57: 0.078 | AE57: 0.062 | AF57: 0.05 | AG57: 0.035
A58: >30_>20 | B58: >30 | C58: >20 | D58: 0.00019 | E58: 0.00018 | F58: 0.00017 | G58: 0.00016 | H58: 1.8 | I58: 1.5 | J58: 1.3 | K58: 1.2 | L58: 1 | M58: 0.92 | N58: 0.82 | O58: 0.73 | P58: 0.66 | Q58: 0.6 | R58: 0.55 | S58: 0.51 | T58: 0.47 | U58: 0.43 | V58: 0.4 | W58: 0.37 | X58: 0.27 | Y58: 0.21 | Z58: 0.17 | AA58: 0.14 | AB58: 0.12 | AC58: 0.098 | AD58: 0.075 | AE58: 0.059 | AF58: 0.048 | AG58: 0.034

Sheet Errata
A3: 11/12/21 - Modified zinc and nickel emission rates - parent metal only
A4: 11/12/21 - Changed "Nickel and Compounds" to nickel compounds, soluble
